﻿Merchandising Type Category,Detailed Merchant Category,Supplier,Purchase Details,Transaction Date,Value,Department
Miscellaneous,Charitable/Soc Service Orgs,The Inst Of Int Audito,Employees related expenditure,01/10/2019,365.06,Director of Finance & Resources
Transportation,Passenger Railways,Swrailway Tck Off,Transport related expenditure,01/10/2019,82.6,Director of Corporate Services
Business To Business Eqpt/Furn,Commercial Furniture,Pp*recycledofficesolut,Supplies and Services related expenditure,01/10/2019,360,Director of Children's Services and Education
Business To Business Eqpt/Furn,Commercial Furniture,Pp*recycledofficesolut,Supplies and Services related expenditure,01/10/2019,13.5,Director of Children's Services and Education
Retail,Electronics Sales,Altron Comm Equip,Supplies and Services related expenditure,01/10/2019,70,"Director of Housing, Neighbourhood and Building Services"
Business To Business Eqpt/Furn,Stationery/Office Supplies,Www.Banneruk.Com,Supplies and Services related expenditure,01/10/2019,245.32,Director of Regeneration
Caterers Food,Caterers,Phd Costa Coffee Baxte,Supplies and Services related expenditure,01/10/2019,4.9,Director of Children's Services and Education
Transportation,"Parking Lots, Meters, Garages",Britannia Parking Grou,Agency and Third Party Payments related expenditure,01/10/2019,4.33,Director of Children's Services and Education
Transportation,Steamship/Cruise Lines,Red Funnel Group,Agency and Third Party Payments related expenditure,01/10/2019,18.4,Director of Children's Services and Education
Medical,Lab/Med/Hospital Equipment,Wightman & Parrish,Premises related expenditure,01/10/2019,409.02,"Director of Housing, Neighbourhood and Building Services"
Miscellaneous,Sport/Recreational Camps,Fo Chichester Ltd,Supplies and Services related expenditure,01/10/2019,21.25,Director of Children's Services and Education
Other Supplies,Misc Speciality Retail,Amznmktplace Amazon.Co.Uk,Supplies and Services related expenditure,01/10/2019,102.74,Director of Children's Services and Education
Business Expenses/Services,Postage Stamps,Post Office Counter,Supplies and Services related expenditure,01/10/2019,10.1,"Director of Culture, Leisure & Regulatory Services"
Transportation,Local Commuter Transport,Hovertravel Ltd,Transport related expenditure,01/10/2019,115,Director of Children's Services and Education
Transportation,Local Commuter Transport,Hovertravel Ltd,Transport related expenditure,01/10/2019,14.5,Director of Children's Services and Education
Transportation,Local Commuter Transport,Hovertravel Ltd,Transport related expenditure,01/10/2019,14.5,Director of Children's Services and Education
Transportation,Bus Lines/Charter/Tour,The Provincial Bus,Transport related expenditure,01/10/2019,129,Director of Children's Services and Education
Transportation,Bus Lines/Charter/Tour,The Provincial Bus,Transport related expenditure,01/10/2019,129,Director of Children's Services and Education
Transportation,Bus Lines/Charter/Tour,The Provincial Bus,Transport related expenditure,01/10/2019,129,Director of Children's Services and Education
Retail,Grocery Stores/Supermarkets,Asda Groceries Online,Supplies and Services related expenditure,01/10/2019,-10,Director of Children's Services and Education
Business Services,Business Services - Default,Indeed Tel+35312545907,Employees related expenditure,01/10/2019,10.95,Director of Children's Services and Education
Retail,Grocery Stores/Supermarkets,Asda Groceries Online,Supplies and Services related expenditure,01/10/2019,202.05,Director of Children's Services and Education
Retail,Grocery Stores/Supermarkets,Asda Groceries Online,Supplies and Services related expenditure,01/10/2019,27.73,Director of Children's Services and Education
Retail,Misc Food Stores - Default,M&s Simply Food - Ssp,Supplies and Services related expenditure,01/10/2019,5,Director of Children's Services and Education
Hotels And Motels,Lodging/Hotels/Motels/Resorts,Ibis Gent Centrum Kat,Supplies and Services related expenditure,01/10/2019,33.12,Director of Children's Services and Education
Business To Business Eqpt/Furn,Stationery/Office Supplies,Www.Banneruk.Com,Supplies and Services related expenditure,01/10/2019,27.59,Director of Finance & Resources
Transportation,Passenger Railways,Trainline,Transport related expenditure,01/10/2019,34.1,Director of Regeneration
Transportation,Passenger Railways,New Southern Railw,Transport related expenditure,01/10/2019,65.9,Director of Public Health
Business Services,Business Services - Default,Posturite Ltd,Supplies and Services related expenditure,01/10/2019,85.78,Capital - Children & Families
Business Services,Business Services - Default,Posturite Ltd,Supplies and Services related expenditure,01/10/2019,4.17,Capital - Children & Families
Miscellaneous,Fines,Combined Court Cen,Supplies and Services related expenditure,01/10/2019,545,"Director of Housing, Neighbourhood and Building Services"
Business To Business Facility/,Industrial Supplies - Def,Www.Arco.Co.Uk,Supplies and Services related expenditure,01/10/2019,25.3,"Director of Culture, Leisure & Regulatory Services"
Business To Business Facility/,Industrial Supplies - Def,Www.Arco.Co.Uk,Supplies and Services related expenditure,01/10/2019,232.08,"Director of Culture, Leisure & Regulatory Services"
Utilities,Computer Network/Info Svcs,Timico,Supplies and Services related expenditure,01/10/2019,5.78,Director of Corporate Services
Retail,Grocery Stores/Supermarkets,Tesco Store 3055,Supplies and Services related expenditure,01/10/2019,42.5,Director of Adult Services
Retail,Grocery Stores/Supermarkets,Tesco Store 3055,Supplies and Services related expenditure,01/10/2019,14.58,Director of Adult Services
Retail,Misc Food Stores - Default,M&s Simply Food - Ssp,Supplies and Services related expenditure,01/10/2019,6.05,Director of Children's Services and Education
Hotels And Motels,Lodging/Hotels/Motels/Resorts,Ibis Gent Centrum Kat,Supplies and Services related expenditure,01/10/2019,8.28,Director of Children's Services and Education
Transportation,Passenger Railways,Swrailway Tck Off,Transport related expenditure,01/10/2019,49.2,Director of Children's Services and Education
Transportation,Passenger Railways,Swrailway Tck Off,Transport related expenditure,01/10/2019,12,Director of Corporate Services
Business Expenses/Services,Postage Stamps,Post Office Counter,Supplies and Services related expenditure,01/10/2019,4,Director of Children's Services and Education
Eating And Drinking Places,Eating Places/Restaurants,Greggs Plc,Supplies and Services related expenditure,01/10/2019,1.17,Director of Children's Services and Education
Eating And Drinking Places,Eating Places/Restaurants,Greggs Plc,Supplies and Services related expenditure,01/10/2019,3,Director of Children's Services and Education
Facilities/Repair Supplies,Home Supply Warehouse Stores,B & Q 1260,Supplies and Services related expenditure,01/10/2019,15,Director of Children's Services and Education
Retail,Grocery Stores/Supermarkets,Marks&spencer Plc,Supplies and Services related expenditure,01/10/2019,28.33,Director of Children's Services and Education
Other Supplies,Misc Speciality Retail,Amznmktplace,Supplies and Services related expenditure,01/10/2019,20.58,Director of Children's Services and Education
Other Supplies,Misc Speciality Retail,Amznmktplace,Supplies and Services related expenditure,01/10/2019,39.33,Director of Children's Services and Education
Retail,Grocery Stores/Supermarkets,Tesco Stores 4579,Supplies and Services related expenditure,01/10/2019,14.12,Director of Children's Services and Education
Retail,Grocery Stores/Supermarkets,Tesco Stores 4579,Supplies and Services related expenditure,01/10/2019,69.62,Director of Children's Services and Education
Miscellaneous,Other Direct Marketers,Amazon.Co.Uk,Supplies and Services related expenditure,01/10/2019,167.31,Director of Children's Services and Education
Business To Business Other Sup,Uniforms & Commercial Clothing,Alexandra Website,Supplies and Services related expenditure,01/10/2019,126.6,"Director of Housing, Neighbourhood and Building Services"
Retail,Grocery Stores/Supermarkets,Tesco-Stores 6255,Supplies and Services related expenditure,01/10/2019,4.35,Director of Children's Services and Education
Utilities,Utilities/Elec/Gas/H2O/Sani,Castle Water,Premises related expenditure,01/10/2019,26.75,Director of Portsmouth International Port
Transportation,Taxicabs/Limousines,Aqua Cars,Transport related expenditure,01/10/2019,254.8,Director of Portsmouth International Port
Hotels And Motels,Travelodge,Travelodge Gb0000,Agency and Third Party Payments related expenditure,01/10/2019,441,"Director of Housing, Neighbourhood and Building Services"
Hotels And Motels,Travelodge,Travelodge Gb0000,Agency and Third Party Payments related expenditure,01/10/2019,1912.43,"Director of Housing, Neighbourhood and Building Services"
Government,Govt Serv - Default,Portsmouth City Counci,Supplies and Services related expenditure,01/10/2019,2.08,Director of Regeneration
Freight/Courier/Warehouse Svcs,Public Warehousing,Www.Safestore.Co.Uk,Supplies and Services related expenditure,01/10/2019,21.65,Director of Children's Services and Education
Transportation,Passenger Railways,Swrailway Tck Off,Transport related expenditure,01/10/2019,85,Director of Children's Services and Education
Transportation,Passenger Railways,Swrailway Tck Off,Transport related expenditure,01/10/2019,85,Director of Children's Services and Education
Transportation,Passenger Railways,Swrailway Tck Off,Transport related expenditure,01/10/2019,75,Director of Children's Services and Education
Transportation,Passenger Railways,Swrailway Tck Off,Transport related expenditure,01/10/2019,76.5,Director of Children's Services and Education
Hotels And Motels,Lodging/Hotels/Motels/Resorts,Queens Hotel,Supplies and Services related expenditure,01/10/2019,416.67,Director of Children's Services and Education
Hotels And Motels,Lodging/Hotels/Motels/Resorts,Queens Hotel,Supplies and Services related expenditure,01/10/2019,83.33,Director of Children's Services and Education
Government,Govt Serv - Default,Pcc Moto Payment,Supplies and Services related expenditure,01/10/2019,70,Director of Children's Services and Education
Freight/Courier/Warehouse Svcs,Public Warehousing,Www.Safestore.Co.Uk,Supplies and Services related expenditure,01/10/2019,403.07,Director of Children's Services and Education
Equipment And Furniture,Household Appliance Stores,Wilko Retail Limit,Premises related expenditure,01/10/2019,20.83,"Director of Housing, Neighbourhood and Building Services"
Transportation,Passenger Railways,Swrailway Tck Off,Transport related expenditure,01/10/2019,85.4,Director of Children's Services and Education
Other Supplies,Gift/Card/Novelty And Souvenir Stores,Moonpiguk,Supplies and Services related expenditure,01/10/2019,10.82,"Director of Culture, Leisure & Regulatory Services"
Retail,Barber/Beauty Shops,Capital H&b Ltd,Supplies and Services related expenditure,01/10/2019,110.42,"Director of Housing, Neighbourhood and Building Services"
Transportation,"Parking Lots, Meters, Garages",Southampton University,Transport related expenditure,01/10/2019,4.5,Director of Children's Services and Education
Equipment And Furniture,Furniture/Equip Stores,Wayfair #2682452408,Supplies and Services related expenditure,01/10/2019,85.98,Director of Adult Services
Retail,Grocery Stores/Supermarkets,Sainsburys.Co.Uk,Supplies and Services related expenditure,01/10/2019,48.33,Director of Children's Services and Education
Retail,Grocery Stores/Supermarkets,Sainsburys.Co.Uk,Supplies and Services related expenditure,01/10/2019,104.8,Director of Children's Services and Education
Other Supplies,Misc Speciality Retail,Amznmktplace Amazon.Co.Uk,Supplies and Services related expenditure,01/10/2019,46.76,Director of Portsmouth International Port
Equipment And Furniture,Phone Serv/Equip Non-Util,Paypal,Supplies and Services related expenditure,01/10/2019,224.32,Director of Portsmouth International Port
Professional Services,Mgmt/Consult/Public Rel Ser,Dellar Davies Ltd Clia Eu,Supplies and Services related expenditure,01/10/2019,546.35,Director of Portsmouth International Port
Entertainment,Member Clubs/Sport/Rec/Golf,Horizon Leisure Trust,Supplies and Services related expenditure,01/10/2019,6.6,Director of Adult Services
Retail,Grocery Stores/Supermarkets,Tesco Store 3186,Supplies and Services related expenditure,01/10/2019,25,Director of Children's Services and Education
Retail,Grocery Stores/Supermarkets,Asda Stores,Supplies and Services related expenditure,01/10/2019,6.67,"Director of Culture, Leisure & Regulatory Services"
Retail,Grocery Stores/Supermarkets,Asda Stores,Supplies and Services related expenditure,01/10/2019,8.8,"Director of Culture, Leisure & Regulatory Services"
Retail,Grocery Stores/Supermarkets,Asda Stores,Supplies and Services related expenditure,01/10/2019,9.13,Director of Corporate Services
Retail,Grocery Stores/Supermarkets,Asda Stores,Supplies and Services related expenditure,01/10/2019,2,Director of Corporate Services
Transportation,"Parking Lots, Meters, Garages",London Aldersgate,Transport related expenditure,01/10/2019,16.63,"Director of Culture, Leisure & Regulatory Services"
Business To Business Services,Misc Publishing & Printing,Vistapr*vistaprint.Com,Supplies and Services related expenditure,01/10/2019,296.43,"Director of Culture, Leisure & Regulatory Services"
Retail,Grocery Stores/Supermarkets,Tesco Store 3055,Supplies and Services related expenditure,01/10/2019,4.29,Director of Children's Services and Education
Miscellaneous,Sport/Recreational Camps,Flip Out Portsmouth,Supplies and Services related expenditure,01/10/2019,12.5,Director of Children's Services and Education
Business To Business Other Sup,Drugs/Druggists Sundries,Pharmacyequipment.,Supplies and Services related expenditure,01/10/2019,59.4,Director of Public Health
Miscellaneous,Other Direct Marketers,Amazon.Co.Uk,Supplies and Services related expenditure,01/10/2019,16.67,Director of Children's Services and Education
Facilities/Repair Services,Misc Repair Services,Solent Rewinds Ltd,Premises related expenditure,01/10/2019,25,Director of Portsmouth International Port
Business To Business Facility/,Electrical Parts/Equipment,Edmundson Electrical,Premises related expenditure,01/10/2019,33.55,Director of Portsmouth International Port
Business To Business Eqpt/Furn,Stationery/Office Supplies,Www.Banneruk.Com,Supplies and Services related expenditure,01/10/2019,7.91,Director of Finance & Resources
Business To Business Eqpt/Furn,Stationery/Office Supplies,Www.Banneruk.Com,Supplies and Services related expenditure,01/10/2019,8.2,Director of Finance & Resources
Business To Business Eqpt/Furn,Stationery/Office Supplies,Www.Banneruk.Com,Supplies and Services related expenditure,01/10/2019,406.39,Director of Finance & Resources
Transportation,"Parking Lots, Meters, Garages",Portsmouth City Co,Transport related expenditure,01/10/2019,4.33,Director of Children's Services and Education
Transportation,"Parking Lots, Meters, Garages",Portsmouth City Co,Transport related expenditure,01/10/2019,4.33,Director of Children's Services and Education
Transportation,Local Commuter Transport,Hovertravel Ltd,Transport related expenditure,01/10/2019,16.5,Director of Children's Services and Education
Transportation,Local Commuter Transport,Hovertravel Ltd,Supplies and Services related expenditure,01/10/2019,19.36,Director of Children's Services and Education
Eating And Drinking Places,Eating Places/Restaurants,Pure Ground,Supplies and Services related expenditure,01/10/2019,4.67,Director of Children's Services and Education
Eating And Drinking Places,Fast Food Restaurants,Costa Coffee 43042195,Supplies and Services related expenditure,01/10/2019,7.29,Director of Children's Services and Education
Miscellaneous,Sport/Recreational Camps,Fo Chichester Ltd,Supplies and Services related expenditure,01/10/2019,13.25,Director of Children's Services and Education
Other Supplies,Department Stores,The Range,Supplies and Services related expenditure,01/10/2019,3.33,Director of Children's Services and Education
Other Supplies,Discount Stores,Argos Direct,Supplies and Services related expenditure,01/10/2019,123.94,Director of Adult Services
Retail,Grocery Stores/Supermarkets,Tesco Store 3539,Supplies and Services related expenditure,01/10/2019,-10.56,Director of Children's Services and Education
Hotels And Motels,Hotel Ibis,Hotel Ibis,Departmental Recharges related expenditure,01/10/2019,254.17,Director of Adult Services
Other Supplies,Misc Speciality Retail,Amznmktplace,Supplies and Services related expenditure,01/10/2019,33.39,Director of Children's Services and Education
Other Supplies,Misc Speciality Retail,Amznmktplace,Supplies and Services related expenditure,01/10/2019,48.51,Director of Children's Services and Education
Retail,Grocery Stores/Supermarkets,Tesco Stores 4579,Supplies and Services related expenditure,01/10/2019,14.73,Director of Children's Services and Education
Retail,Grocery Stores/Supermarkets,Tesco Stores 5153,Premises related expenditure,01/10/2019,50,Director of Children's Services and Education
Retail,Grocery Stores/Supermarkets,Tesco Stores 5153,Premises related expenditure,01/10/2019,50,Director of Children's Services and Education
Hotels And Motels,Premier Travel Inns,Premier Inn 44536680,Supplies and Services related expenditure,01/10/2019,-104,Director of Children's Services and Education
Business To Business Facility/,Hardware Equipment/Supplies,Croma Locksmiths & Sec,Supplies and Services related expenditure,01/10/2019,11.66,"Director of Culture, Leisure & Regulatory Services"
Transportation,"Parking Lots, Meters, Garages",Portsmouth City Co,Transport related expenditure,01/10/2019,10.25,Chief Exec
Retail,Grocery Stores/Supermarkets,Asda Groceries Online,Supplies and Services related expenditure,01/10/2019,44.45,Director of Children's Services and Education
Transportation,Passenger Railways,Lul Ticket Machine,Transport related expenditure,01/10/2019,4.9,Director of Children's Services and Education
Hotels And Motels,Lodging/Hotels/Motels/Resorts,Ibis Gent Centrum Kat,Supplies and Services related expenditure,01/10/2019,8.28,Director of Children's Services and Education
Retail,Misc Food Stores - Default,M&s Simply Food - Ssp,Supplies and Services related expenditure,01/10/2019,9.5,Director of Children's Services and Education
Transportation,Passenger Railways,Sncb Nmbs Bru Midi Zu,Transport related expenditure,01/10/2019,24.85,Director of Children's Services and Education
Transportation,Passenger Railways,Swrailwayselfserve,Transport related expenditure,01/10/2019,47.6,Director of Children's Services and Education
Other Supplies,Discount Stores,Argos Retail Group,Supplies and Services related expenditure,01/10/2019,21,Director of Children's Services and Education
Government,Govt Serv - Default,Portsmouth City Co,Transport related expenditure,01/10/2019,31.67,Director of Adult Services
Retail,Sporting Goods Stores,Portsmouth Golf Centre,Supplies and Services related expenditure,01/10/2019,8.33,Director of Children's Services and Education
Eating And Drinking Places,Fast Food Restaurants,Costa Coffee 43040140,Supplies and Services related expenditure,01/10/2019,2.1,Director of Children's Services and Education
Clothing/Shoes/Uniforms,Misc Apparel/Access Shops,The Safety Supply,Supplies and Services related expenditure,01/10/2019,111.95,Director of Portsmouth International Port
Retail,Grocery Stores/Supermarkets,Tesco Stores 6577,Supplies and Services related expenditure,01/10/2019,7.3,Director of Adult Services
Retail,Sporting Goods Stores,Sportsdirect.Com,Supplies and Services related expenditure,01/10/2019,30.83,Director of Children's Services and Education
Retail,Artist/Craft Shops,Www.Hobbycraft.Co.Uk,Supplies and Services related expenditure,01/10/2019,41.4,Director of Children's Services and Education
Other Supplies,Catalog Merchant,Www.Uk.Insight.Com,Supplies and Services related expenditure,01/10/2019,11.9,"Director of Housing, Neighbourhood and Building Services"
Government,Govt Serv - Default,Portsmouth City Co,Transport related expenditure,01/10/2019,2.92,Director of Adult Services
Government,Govt Serv - Default,Portsmouth City Co,Transport related expenditure,01/10/2019,31.67,Director of Children's Services and Education
Transportation,Passenger Railways,Swrailway Tck Off,Transport related expenditure,01/10/2019,144.1,Director of Corporate Services
Medical,Lab/Med/Hospital Equipment,Wightman & Parrish,Premises related expenditure,01/10/2019,6.98,"Director of Housing, Neighbourhood and Building Services"
Retail,Grocery Stores/Supermarkets,Tesco Stores 4579,Supplies and Services related expenditure,01/10/2019,20.83,Director of Children's Services and Education
Equipment And Furniture,Phone Serv/Equip Non-Util,Bt Bill Payment 2,Supplies and Services related expenditure,01/10/2019,38.38,Director of Children's Services and Education
Utilities,Phone Serv/Equip Utility,Virgin Media Pymts,Supplies and Services related expenditure,01/10/2019,66.67,Director of Children's Services and Education
Government,Govt Serv - Default,Pcc Moto Payment,Supplies and Services related expenditure,01/10/2019,22,Director of Children's Services and Education
Business To Business Eqpt/Furn,Stationery/Office Supplies,Www.Banneruk.Com,Supplies and Services related expenditure,01/10/2019,64.8,Director of Adult Services
Transportation,Passenger Railways,Sw Railway App,Transport related expenditure,01/10/2019,70,"Director of Culture, Leisure & Regulatory Services"
Hotels And Motels,Premier Travel Inns,Premier Inn 44536680,Supplies and Services related expenditure,01/10/2019,97.08,"Director of Housing, Neighbourhood and Building Services"
Hotels And Motels,Travelodge,Travelodge Gb0000,Agency and Third Party Payments related expenditure,01/10/2019,31.5,"Director of Housing, Neighbourhood and Building Services"
Hotels And Motels,Travelodge,Travelodge Gb0000,Agency and Third Party Payments related expenditure,01/10/2019,277.83,"Director of Housing, Neighbourhood and Building Services"
Transportation,Passenger Railways,New Southern Railw,Transport related expenditure,01/10/2019,61,Director of Children's Services and Education
Retail,Grocery Stores/Supermarkets,Tesco Stores 5475,Supplies and Services related expenditure,01/10/2019,1.08,Director of Children's Services and Education
Retail,Grocery Stores/Supermarkets,Tesco Stores 5475,Supplies and Services related expenditure,01/10/2019,1.7,Director of Children's Services and Education
Retail,Grocery Stores/Supermarkets,Tesco Store 3055,Supplies and Services related expenditure,01/10/2019,3.5,Director of Children's Services and Education
Retail,Grocery Stores/Supermarkets,Tesco Store 3055,Supplies and Services related expenditure,01/10/2019,17.06,Director of Children's Services and Education
Retail,Grocery Stores/Supermarkets,Tesco Stores 4611,Supplies and Services related expenditure,01/10/2019,40,Director of Children's Services and Education
Retail,Grocery Stores/Supermarkets,Tesco Store 3055,Supplies and Services related expenditure,01/10/2019,96.21,Director of Children's Services and Education
Retail,Sporting Goods Stores,Sportsdirect 219,Supplies and Services related expenditure,01/10/2019,1.17,"Director of Housing, Neighbourhood and Building Services"
Retail,Grocery Stores/Supermarkets,Asda Stores,Supplies and Services related expenditure,01/10/2019,3.43,"Director of Housing, Neighbourhood and Building Services"
Other Supplies,Department Stores,Southern Co-Op 0214,Supplies and Services related expenditure,01/10/2019,3.49,"Director of Housing, Neighbourhood and Building Services"
Retail,Grocery Stores/Supermarkets,Asda Stores,Supplies and Services related expenditure,01/10/2019,5.13,"Director of Housing, Neighbourhood and Building Services"
Other Supplies,Discount Stores,Argos Ltd,Supplies and Services related expenditure,01/10/2019,5.83,"Director of Housing, Neighbourhood and Building Services"
Other Supplies,Discount Stores,Poundland Ltd 1210,Supplies and Services related expenditure,01/10/2019,7.54,"Director of Housing, Neighbourhood and Building Services"
Other Supplies,Discount Stores,Argos Ltd,Supplies and Services related expenditure,01/10/2019,8.33,"Director of Housing, Neighbourhood and Building Services"
Auto/Vehicle Rentals,Automobile Rental Agency,Rental Car On Booking,Supplies and Services related expenditure,01/10/2019,57.6,"Director of Housing, Neighbourhood and Building Services"
Auto/Vehicle Rentals,Automobile Rental Agency,Rental Car On Booking,Supplies and Services related expenditure,01/10/2019,-57.6,"Director of Housing, Neighbourhood and Building Services"
Transportation,Passenger Railways,Trainline.Com,Supplies and Services related expenditure,01/10/2019,264.62,"Director of Housing, Neighbourhood and Building Services"
Transportation,"Parking Lots, Meters, Garages",3c_*portsmouth City Co,Supplies and Services related expenditure,01/10/2019,1.8,Director of Children's Services and Education
Business To Business Eqpt/Furn,Computer Software Stores,"Zeplin, Inc.",Supplies and Services related expenditure,01/10/2019,652.92,Director of Corporate Services
Business To Business Eqpt/Furn,Computer Software Stores,"Zeplin, Inc.",Supplies and Services related expenditure,01/10/2019,652.92,Director of Corporate Services
Retail,Artist/Craft Shops,Amz,Supplies and Services related expenditure,01/10/2019,20.83,Director of Children's Services and Education
Government,Schools - Default,Ncs*cima Vue Exam,Employees related expenditure,01/10/2019,185,Director of Finance & Resources
Government,Schools - Default,Www.Kaplanfoulkslynch.,Employees related expenditure,01/10/2019,251,Director of Finance & Resources
Retail,Grocery Stores/Supermarkets,Asda Superstore,Supplies and Services related expenditure,01/10/2019,1.25,Director of Adult Services
Facilities/Repair Supplies,Home Supply Warehouse Stores,B & Q 1260,Premises related expenditure,01/10/2019,10.28,"Director of Culture, Leisure & Regulatory Services"
Medical,Lab/Med/Hospital Equipment,Wightman & Parrish,Premises related expenditure,01/10/2019,317.65,Director of Adult Services
Medical,Lab/Med/Hospital Equipment,Wightman & Parrish,Supplies and Services related expenditure,01/10/2019,332.72,Director of Adult Services
Facilities/Repair Supplies,Hardware Stores,Toolstation Ltd,Supplies and Services related expenditure,01/10/2019,-209.95,"Director of Culture, Leisure & Regulatory Services"
Other Supplies,Department Stores,Southern Co-Op 0005,Supplies and Services related expenditure,01/10/2019,2.58,Director of Adult Services
Retail,Record Shops,Amazon Music,Supplies and Services related expenditure,01/10/2019,12.49,Director of Adult Services
Government,Schools - Default,Www Elmhurstenergy Co Uk,Employees related expenditure,01/10/2019,375,"Director of Housing, Neighbourhood and Building Services"
Business To Business Facility/,Hardware Equipment/Supplies,Croma Locksmiths & Sec,Premises related expenditure,01/10/2019,43.66,"Director of Culture, Leisure & Regulatory Services"
Retail,Grocery Stores/Supermarkets,Tesco Store 3055,Supplies and Services related expenditure,01/10/2019,33.46,Director of Children's Services and Education
Retail,Grocery Stores/Supermarkets,Tesco Store 3055,Supplies and Services related expenditure,01/10/2019,15.77,Director of Children's Services and Education
Retail,Grocery Stores/Supermarkets,Tesco Store 3055,Supplies and Services related expenditure,01/10/2019,18.74,Director of Children's Services and Education
Retail,Grocery Stores/Supermarkets,Tesco Store 3055,Supplies and Services related expenditure,01/10/2019,41.79,Director of Children's Services and Education
Transportation,Passenger Railways,Swrailwayselfserve,Transport related expenditure,01/10/2019,192.5,Director of Adult Services
Transportation,Passenger Railways,Swrailwayselfserve,Transport related expenditure,01/10/2019,54.4,Director of Regeneration
Medical,Doctors,H And G Healthcare Ltd,Supplies and Services related expenditure,01/10/2019,805,Director of Public Health
Professional Services,Professional Services - Def,Capita Recruitment Vettin,Supplies and Services related expenditure,01/10/2019,9.91,Solent LEP
Business To Business Eqpt/Furn,Stationery/Office Supplies,Www.Banneruk.Com,Supplies and Services related expenditure,01/10/2019,1.3,Director of Children's Services and Education
Business To Business Eqpt/Furn,Stationery/Office Supplies,Www.Banneruk.Com,Supplies and Services related expenditure,01/10/2019,177.08,Director of Adult Services
Retail,Music Stores/Pianos,Dv247 Limited,Supplies and Services related expenditure,01/10/2019,460,"Director of Housing, Neighbourhood and Building Services"
Government,Schools - Default,Qualsafe Ltd,Employees related expenditure,01/10/2019,62,Director of Corporate Services
Government,Govt Serv - Default,Portsmouth City Co,Supplies and Services related expenditure,01/10/2019,31.67,Director of Children's Services and Education
Other Supplies,Department Stores,Southern Co-Op 0018,Supplies and Services related expenditure,01/10/2019,2.63,Director of Children's Services and Education
Eating And Drinking Places,Fast Food Restaurants,Subway,Supplies and Services related expenditure,01/10/2019,3.91,Director of Children's Services and Education
Retail,Sporting Goods Stores,Decathlon Portsmouth,Agency and Third Party Payments related expenditure,01/10/2019,44.09,Director of Children's Services and Education
Retail,Grocery Stores/Supermarkets,Asda Groceries Online,Supplies and Services related expenditure,01/10/2019,-0.3,Director of Children's Services and Education
Other Supplies,Misc Speciality Retail,Amznmktplace,Supplies and Services related expenditure,01/10/2019,13.33,Director of Children's Services and Education
Other Supplies,Misc Speciality Retail,Amznmktplace,Supplies and Services related expenditure,01/10/2019,4.99,Director of Children's Services and Education
Retail,Grocery Stores/Supermarkets,Asda Groceries Online,Supplies and Services related expenditure,01/10/2019,68.48,Director of Children's Services and Education
Retail,Grocery Stores/Supermarkets,Asda Groceries Online,Supplies and Services related expenditure,01/10/2019,49.06,Director of Children's Services and Education
Facilities/Repair Supplies,Home Supply Warehouse Stores,B & Q 1238,Supplies and Services related expenditure,01/10/2019,26.28,"Director of Culture, Leisure & Regulatory Services"
Automobile Services & Supplies,Service Stations,Milton Road Servic,Supplies and Services related expenditure,01/10/2019,1.39,Director of Children's Services and Education
Retail,Grocery Stores/Supermarkets,Tesco Stores 4579,Supplies and Services related expenditure,01/10/2019,28.43,Director of Children's Services and Education
Retail,Artist/Craft Shops,Hobbycraft,Supplies and Services related expenditure,01/10/2019,68.75,Director of Children's Services and Education
Retail,Grocery Stores/Supermarkets,Asda Groceries Online,Supplies and Services related expenditure,01/10/2019,62.46,Director of Children's Services and Education
Business To Business Eqpt/Furn,Stationery/Office Supplies,Www.Banneruk.Com,Supplies and Services related expenditure,01/10/2019,1.05,"Director of Housing, Neighbourhood and Building Services"
Business To Business Eqpt/Furn,Stationery/Office Supplies,Www.Banneruk.Com,Supplies and Services related expenditure,01/10/2019,1.32,"Director of Housing, Neighbourhood and Building Services"
Retail,Grocery Stores/Supermarkets,Tesco Store 3055,Supplies and Services related expenditure,01/10/2019,10.28,Director of Adult Services
Medical,Lab/Med/Hospital Equipment,Wightman & Parrish,Premises related expenditure,01/10/2019,405.07,Director of Adult Services
Medical,Lab/Med/Hospital Equipment,Wightman & Parrish,Supplies and Services related expenditure,01/10/2019,399.7,Director of Adult Services
Government,Govt Serv - Default,Dsa Theory Test,Supplies and Services related expenditure,01/10/2019,23,Director of Children's Services and Education
Retail,Grocery Stores/Supermarkets,Tesco Store 3048,Supplies and Services related expenditure,01/10/2019,5.62,Director of Children's Services and Education
Facilities/Repair Supplies,Home Supply Warehouse Stores,B & Q 1260,Supplies and Services related expenditure,01/10/2019,12.62,"Director of Housing, Neighbourhood and Building Services"
Entertainment,Amusement/Rec Serv - Def,Nil*greatrun.Org,Supplies and Services related expenditure,01/10/2019,150,Director of Children's Services and Education
Retail,Grocery Stores/Supermarkets,Tesco Stores 4611,Supplies and Services related expenditure,01/10/2019,2,"Director of Culture, Leisure & Regulatory Services"
Business To Business Eqpt/Furn,Stationery/Office Supplies,Www.Banneruk.Com,Supplies and Services related expenditure,01/10/2019,51.37,Director of Regeneration
Retail,Jewelry Stores,Goulds Jewellers,Supplies and Services related expenditure,01/10/2019,300,"Director of Culture, Leisure & Regulatory Services"
Business To Business Eqpt/Furn,Stationery/Office Supplies,Www.Banneruk.Com,Supplies and Services related expenditure,01/10/2019,3.29,Director of Finance & Resources
Business To Business Eqpt/Furn,Stationery/Office Supplies,Www.Banneruk.Com,Supplies and Services related expenditure,01/10/2019,9.64,Director of Finance & Resources
Business Expenses/Services,Postage Stamps,Post Office Counter,Supplies and Services related expenditure,01/10/2019,3.8,Director of Children's Services and Education
Government,Govt Serv - Default,Somerset County Counci,Supplies and Services related expenditure,01/10/2019,11,Director of Children's Services and Education
Business To Business Eqpt/Furn,Stationery/Office Supplies,Www.Banneruk.Com,Supplies and Services related expenditure,01/10/2019,3.12,"Director of Culture, Leisure & Regulatory Services"
Business To Business Eqpt/Furn,Stationery/Office Supplies,Www.Banneruk.Com,Supplies and Services related expenditure,01/10/2019,50.93,Director of Corporate Services
Retail,Grocery Stores/Supermarkets,Southern Co-Op 0006,Supplies and Services related expenditure,01/10/2019,8.33,Director of Children's Services and Education
Facilities/Repair Supplies,Drapery & Upholstery Stores,Fabricland,Supplies and Services related expenditure,01/10/2019,13.8,"Director of Culture, Leisure & Regulatory Services"
Business To Business Eqpt/Furn,Stationery/Office Supplies,Www.Banneruk.Com,Supplies and Services related expenditure,01/10/2019,17.79,Director of Corporate Services
Business To Business Eqpt/Furn,Stationery/Office Supplies,Www.Banneruk.Com,Supplies and Services related expenditure,01/10/2019,2322.8,Director of Corporate Services
Medical,Lab/Med/Hospital Equipment,Wightman & Parrish,Premises related expenditure,01/10/2019,312.32,"Director of Housing, Neighbourhood and Building Services"
Eating And Drinking Places,Eating Places/Restaurants,Van Damme-Schloemer,Supplies and Services related expenditure,01/10/2019,49.62,Director of Children's Services and Education
Automobile Services & Supplies,Service Stations,Park Lane Service Station,Transport related expenditure,01/10/2019,61.08,"Director of Housing, Neighbourhood and Building Services"
Auto/Vehicle Expenses,Toll And Bridge Fees,Tfl Business Bops Web,Transport related expenditure,01/10/2019,24,"Director of Culture, Leisure & Regulatory Services"
Transportation,"Parking Lots, Meters, Garages",Ncp Portsmouth.,Supplies and Services related expenditure,01/10/2019,4,Director of Regeneration
Automobile Services & Supplies,Service Stations,Park Lane Service Station,Supplies and Services related expenditure,01/10/2019,101.31,"Director of Housing, Neighbourhood and Building Services"
Other Supplies,Misc Speciality Retail,Amazon.Co.Uk Amazon.Co.Uk,Supplies and Services related expenditure,01/10/2019,-57.91,Director of Children's Services and Education
Professional Services,Mgmt/Consult/Public Rel Ser,Tvlicensing.Co.Uk,Supplies and Services related expenditure,01/10/2019,154.5,"Director of Housing, Neighbourhood and Building Services"
Professional Services,Mgmt/Consult/Public Rel Ser,Tvlicensing.Co.Uk,Supplies and Services related expenditure,01/10/2019,154.5,"Director of Housing, Neighbourhood and Building Services"
Government,Govt Serv - Default,Dvsa,Transport related expenditure,01/10/2019,11,Director of Children's Services and Education
Business To Business Eqpt/Furn,Stationery/Office Supplies,Www.Banneruk.Com,Supplies and Services related expenditure,02/10/2019,29.27,"Director of Housing, Neighbourhood and Building Services"
Business To Business Eqpt/Furn,Stationery/Office Supplies,Www.Banneruk.Com,Supplies and Services related expenditure,02/10/2019,39.95,"Director of Housing, Neighbourhood and Building Services"
Other Supplies,Discount Stores,B&m Retail,Supplies and Services related expenditure,02/10/2019,2.48,Director of Adult Services
Retail,Grocery Stores/Supermarkets,Tesco Stores 4579,Supplies and Services related expenditure,02/10/2019,20.83,Director of Adult Services
Business To Business Eqpt/Furn,Stationery/Office Supplies,Www.Banneruk.Com,Supplies and Services related expenditure,02/10/2019,15.51,"Director of Housing, Neighbourhood and Building Services"
Freight/Courier/Warehouse Svcs,Public Warehousing,Big Yellow S S Portsmout,Premises related expenditure,02/10/2019,18,"Director of Housing, Neighbourhood and Building Services"
Freight/Courier/Warehouse Svcs,Public Warehousing,Big Yellow S S Portsmout,Premises related expenditure,02/10/2019,23.5,"Director of Housing, Neighbourhood and Building Services"
Freight/Courier/Warehouse Svcs,Public Warehousing,Lok N Store,Premises related expenditure,02/10/2019,86.67,"Director of Housing, Neighbourhood and Building Services"
Freight/Courier/Warehouse Svcs,Public Warehousing,Lok N Store,Premises related expenditure,02/10/2019,18,"Director of Housing, Neighbourhood and Building Services"
Freight/Courier/Warehouse Svcs,Public Warehousing,Lok N Store,Premises related expenditure,02/10/2019,-22.6,"Director of Housing, Neighbourhood and Building Services"
Freight/Courier/Warehouse Svcs,Public Warehousing,Lok N Store,Premises related expenditure,02/10/2019,-172.02,"Director of Housing, Neighbourhood and Building Services"
Freight/Courier/Warehouse Svcs,Public Warehousing,Www.Safestore.Co.Uk,Premises related expenditure,02/10/2019,18.6,"Director of Housing, Neighbourhood and Building Services"
Freight/Courier/Warehouse Svcs,Public Warehousing,Www.Safestore.Co.Uk,Premises related expenditure,02/10/2019,276.64,"Director of Housing, Neighbourhood and Building Services"
Other Supplies,Misc Speciality Retail,The Recycled Assets Co,Premises related expenditure,02/10/2019,216,"Director of Housing, Neighbourhood and Building Services"
Other Supplies,Misc Speciality Retail,Amazon.Co.Uk,Supplies and Services related expenditure,02/10/2019,100.2,Director of Regeneration
Automobile Services & Supplies,Service Stations,Mfg North End,Transport related expenditure,02/10/2019,50.01,"Director of Housing, Neighbourhood and Building Services"
Retail,Shoe Repair/Shine/Hat Clean,Timpson Ltd,Supplies and Services related expenditure,02/10/2019,5.42,Director of Corporate Services
Auto/Vehicle Rentals,Motor Home/Rv Rentals,Southsea Leisure Park,Supplies and Services related expenditure,02/10/2019,291.67,Director of Children's Services and Education
Auto/Vehicle Rentals,Motor Home/Rv Rentals,Southsea Leisure Park,Supplies and Services related expenditure,02/10/2019,78.75,Director of Children's Services and Education
Facilities/Repair Supplies,Hardware Stores,Toolstation Ltd,Supplies and Services related expenditure,02/10/2019,23.08,Director of Regeneration
Caterers Food,Caterers,Bookerecomm,Supplies and Services related expenditure,02/10/2019,360.91,"Director of Housing, Neighbourhood and Building Services"
Caterers Food,Caterers,Bookerecomm,Supplies and Services related expenditure,02/10/2019,34.96,"Director of Housing, Neighbourhood and Building Services"
Medical,Lab/Med/Hospital Equipment,Wightman & Parrish Ltd,Premises related expenditure,02/10/2019,51.75,Director of Regeneration
Other Supplies,Misc Speciality Retail,Amznmktplace,Supplies and Services related expenditure,02/10/2019,29.04,Director of Children's Services and Education
Other Supplies,Misc Speciality Retail,Amznmktplace,Supplies and Services related expenditure,02/10/2019,9.95,Director of Children's Services and Education
Other Supplies,Department Stores,The Range,Supplies and Services related expenditure,02/10/2019,9.58,Director of Children's Services and Education
Business Services,Business Services - Default,Posturite Ltd,Supplies and Services related expenditure,02/10/2019,143.05,Director of Children's Services and Education
Business Services,Business Services - Default,Posturite Ltd,Supplies and Services related expenditure,02/10/2019,28.61,Director of Children's Services and Education
Transportation,Taxicabs/Limousines,Uber Trip Help.Uber.Com,Supplies and Services related expenditure,02/10/2019,4.51,Director of Corporate Services
Retail,Grocery Stores/Supermarkets,Sainsburys S/mkts,Supplies and Services related expenditure,02/10/2019,12.15,"Director of Culture, Leisure & Regulatory Services"
Facilities/Repair Supplies,Bicycle Shops/Sales/Service,Portsmouth Cycle Excha,Transport related expenditure,02/10/2019,29.98,Director of Regeneration
Government,Schools - Default,Paypal,Supplies and Services related expenditure,02/10/2019,43.48,Director of Children's Services and Education
Retail,Grocery Stores/Supermarkets,Aldi Stores Ltd,Supplies and Services related expenditure,02/10/2019,0.49,Director of Children's Services and Education
Retail,Grocery Stores/Supermarkets,Aldi Stores Ltd,Supplies and Services related expenditure,02/10/2019,14.91,Director of Children's Services and Education
Other Supplies,Department Stores,Southern Co-Op 0019,Supplies and Services related expenditure,02/10/2019,1,Director of Adult Services
Government,Colleges/Univ/Jc/Profession,Ptrc-Training.Co.U,Employees related expenditure,02/10/2019,649,Director of Regeneration
Hotels And Motels,Travelodge,Travelodge Gb0000,Agency and Third Party Payments related expenditure,02/10/2019,89.25,"Director of Housing, Neighbourhood and Building Services"
Hotels And Motels,Travelodge,Travelodge Gb0000,Agency and Third Party Payments related expenditure,02/10/2019,859.61,"Director of Housing, Neighbourhood and Building Services"
Hotels And Motels,Travelodge,Travelodge Gb0000,Agency and Third Party Payments related expenditure,02/10/2019,89.25,"Director of Housing, Neighbourhood and Building Services"
Hotels And Motels,Travelodge,Travelodge Gb0000,Agency and Third Party Payments related expenditure,02/10/2019,890.48,"Director of Housing, Neighbourhood and Building Services"
Hotels And Motels,Travelodge,Travelodge Gb0000,Agency and Third Party Payments related expenditure,02/10/2019,231,"Director of Housing, Neighbourhood and Building Services"
Hotels And Motels,Travelodge,Travelodge Gb0000,Agency and Third Party Payments related expenditure,02/10/2019,958.53,"Director of Housing, Neighbourhood and Building Services"
Hotels And Motels,Travelodge,Travelodge Gb0000,Agency and Third Party Payments related expenditure,02/10/2019,136.5,"Director of Housing, Neighbourhood and Building Services"
Hotels And Motels,Travelodge,Travelodge Gb0000,Agency and Third Party Payments related expenditure,02/10/2019,1107.33,"Director of Housing, Neighbourhood and Building Services"
Hotels And Motels,Travelodge,Travelodge Gb0000,Agency and Third Party Payments related expenditure,02/10/2019,-220.5,"Director of Housing, Neighbourhood and Building Services"
Hotels And Motels,Travelodge,Travelodge Gb0000,Agency and Third Party Payments related expenditure,02/10/2019,-1667.87,"Director of Housing, Neighbourhood and Building Services"
Hotels And Motels,Travelodge,Travelodge Gb0000,Agency and Third Party Payments related expenditure,02/10/2019,220.5,"Director of Housing, Neighbourhood and Building Services"
Hotels And Motels,Travelodge,Travelodge Gb0000,Agency and Third Party Payments related expenditure,02/10/2019,1667.87,"Director of Housing, Neighbourhood and Building Services"
Hotels And Motels,Travelodge,Travelodge Gb0000,Agency and Third Party Payments related expenditure,02/10/2019,231,"Director of Housing, Neighbourhood and Building Services"
Hotels And Motels,Travelodge,Travelodge Gb0000,Agency and Third Party Payments related expenditure,02/10/2019,1743.86,"Director of Housing, Neighbourhood and Building Services"
Retail,Electronics Sales,Currys Online,Supplies and Services related expenditure,02/10/2019,138.99,Director of Adult Services
Eating And Drinking Places,Fast Food Restaurants,Costa Coffee 43042195,Supplies and Services related expenditure,02/10/2019,3.75,Director of Children's Services and Education
Eating And Drinking Places,Fast Food Restaurants,Costa Coffee 43042195,Supplies and Services related expenditure,02/10/2019,1.67,Director of Children's Services and Education
Business To Business Other Sup,Uniforms & Commercial Clothing,Arco Ltd,Supplies and Services related expenditure,02/10/2019,53.07,"Director of Housing, Neighbourhood and Building Services"
Facilities/Repair Supplies,Lawn/Garden Supply/Nursery,Carters Of Swanwic,Supplies and Services related expenditure,02/10/2019,113.58,"Director of Housing, Neighbourhood and Building Services"
Other Supplies,Misc Speciality Retail,Paypal,Supplies and Services related expenditure,02/10/2019,1.99,Director of Regeneration
Retail,Grocery Stores/Supermarkets,Asda Stores,Supplies and Services related expenditure,02/10/2019,6.58,Director of Children's Services and Education
Transportation,Passenger Railways,Swrailway Tck Off,Transport related expenditure,02/10/2019,9.3,Director of Finance & Resources
Other Supplies,Department Stores,Southern Co-Op 0008,Supplies and Services related expenditure,02/10/2019,3.38,Director of Children's Services and Education
Other Supplies,Department Stores,Southern Co-Op 0008,Agency and Third Party Payments related expenditure,02/10/2019,20,Director of Children's Services and Education
Other Supplies,Department Stores,Southern Co-Op 0008,Supplies and Services related expenditure,02/10/2019,2.5,Director of Children's Services and Education
Retail,Grocery Stores/Supermarkets,Wm Morrisons Store,Supplies and Services related expenditure,02/10/2019,15.43,Director of Children's Services and Education
Retail,Grocery Stores/Supermarkets,Wm Morrisons Store,Supplies and Services related expenditure,02/10/2019,50.3,Director of Children's Services and Education
Business Services,Business Services - Default,Eb *south Coast Commer,Employees related expenditure,02/10/2019,49.9,Director of Regeneration
Other Supplies,Camera & Photo Supply Store,Www.Gardenature.Co.Uk,Supplies and Services related expenditure,02/10/2019,312.48,Director of Regeneration
Other Supplies,Misc Speciality Retail,Amznmktplace Amazon.Co.Uk,Supplies and Services related expenditure,02/10/2019,36.62,Director of Children's Services and Education
Government,Govt Serv - Default,Pcc Moto Payment,Supplies and Services related expenditure,02/10/2019,11,Director of Children's Services and Education
Government,Govt Serv - Default,Pcc Moto Payment,Supplies and Services related expenditure,02/10/2019,22,Director of Children's Services and Education
Retail,Sporting Goods Stores,Decathlon Portsmouth,Supplies and Services related expenditure,02/10/2019,45.78,"Director of Housing, Neighbourhood and Building Services"
Retail,Music Stores/Pianos,Musicnotes.Com,Supplies and Services related expenditure,02/10/2019,9.27,Director of Children's Services and Education
Retail,Music Stores/Pianos,Www.Fabermusic.Com,Supplies and Services related expenditure,02/10/2019,15,Director of Children's Services and Education
Entertainment,Bands/Orchestras/Entertain,Hollywood Bowl,Supplies and Services related expenditure,02/10/2019,8.5,Director of Adult Services
Government,Govt Serv - Default,Portsmouth City Co,Transport related expenditure,02/10/2019,12,Director of Adult Services
Retail,Shoe Repair/Shine/Hat Clean,Timpson Ltd,Premises related expenditure,02/10/2019,8.33,Director of Regeneration
Other Supplies,Variety Stores,Peacock Stores Ltd,Supplies and Services related expenditure,02/10/2019,8,"Director of Housing, Neighbourhood and Building Services"
Retail,Barber/Beauty Shops,Sally Salon Servic,Supplies and Services related expenditure,02/10/2019,10,"Director of Housing, Neighbourhood and Building Services"
Retail,Grocery Stores/Supermarkets,Tesco Store 3055,Supplies and Services related expenditure,02/10/2019,14,"Director of Housing, Neighbourhood and Building Services"
Business To Business Other Sup,Uniforms & Commercial Clothing,Trafalgar Eurotech Ltd,Supplies and Services related expenditure,02/10/2019,41.58,"Director of Housing, Neighbourhood and Building Services"
Retail,Grocery Stores/Supermarkets,Tesco Store 3055,Supplies and Services related expenditure,02/10/2019,75,"Director of Housing, Neighbourhood and Building Services"
Retail,Barber/Beauty Shops,Capital H&b Ltd,Supplies and Services related expenditure,02/10/2019,77.28,"Director of Housing, Neighbourhood and Building Services"
Business To Business Eqpt/Furn,Stationery/Office Supplies,Www.Banneruk.Com,Supplies and Services related expenditure,02/10/2019,129.32,"Director of Housing, Neighbourhood and Building Services"
Transportation,"Parking Lots, Meters, Garages",Nhs Property Services,Supplies and Services related expenditure,02/10/2019,2,Director of Children's Services and Education
Other Supplies,Misc Speciality Retail,Amznmktplace Amazon.Co.Uk,Supplies and Services related expenditure,02/10/2019,17.52,Director of Adult Services
Other Supplies,Misc Speciality Retail,Amznmktplace,Supplies and Services related expenditure,02/10/2019,46.9,Director of Children's Services and Education
Other Supplies,Misc Speciality Retail,Amznmktplace,Supplies and Services related expenditure,02/10/2019,39.55,"Director of Culture, Leisure & Regulatory Services"
Business To Business Eqpt/Furn,Stationery/Office Supplies,Www.Banneruk.Com,Supplies and Services related expenditure,02/10/2019,18.33,Director of Public Health
Government,Govt Serv - Default,Hampshire County Counc,Supplies and Services related expenditure,02/10/2019,10.52,"Director of Culture, Leisure & Regulatory Services"
Transportation,Passenger Railways,Swrailwayselfserve,Transport related expenditure,02/10/2019,5,Director of Finance & Resources
Retail,Misc Food Stores - Default,Welcome B/starbucks,Supplies and Services related expenditure,02/10/2019,4.72,Director of Portsmouth International Port
Business To Business Eqpt/Furn,Stationery/Office Supplies,Www.Banneruk.Com,Supplies and Services related expenditure,02/10/2019,4.69,Director of Adult Services
Business To Business Eqpt/Furn,Stationery/Office Supplies,Www.Banneruk.Com,Supplies and Services related expenditure,02/10/2019,12.38,Director of Adult Services
Eating And Drinking Places,Fast Food Restaurants,Subway Ocean Park,Supplies and Services related expenditure,02/10/2019,3.19,Director of Children's Services and Education
Eating And Drinking Places,Fast Food Restaurants,Costa Coffee 43042195,Supplies and Services related expenditure,02/10/2019,4,Director of Children's Services and Education
Miscellaneous,Sport/Recreational Camps,Red Spider Climbing Limit,Supplies and Services related expenditure,02/10/2019,12.5,Director of Children's Services and Education
Facilities/Repair Supplies,Lawn/Garden Supply/Nursery,M & S Enterprises,Supplies and Services related expenditure,02/10/2019,207.34,"Director of Housing, Neighbourhood and Building Services"
Retail,Grocery Stores/Supermarkets,Tesco Stores 2322,Supplies and Services related expenditure,02/10/2019,7.63,Director of Children's Services and Education
Entertainment,Billiard/Pool Establishment,Craneswater Club,Supplies and Services related expenditure,02/10/2019,4.02,Director of Children's Services and Education
Retail,Grocery Stores/Supermarkets,Tesco Store 3055,Premises related expenditure,02/10/2019,10,Director of Children's Services and Education
Government,Schools - Default,Eversley Training,Employees related expenditure,02/10/2019,35,"Director of Culture, Leisure & Regulatory Services"
Transportation,"Parking Lots, Meters, Garages",Portsmouth City Co,Transport related expenditure,02/10/2019,10.25,Chief Exec
Transportation,Local Commuter Transport,Gosport Ferry Ltd,Transport related expenditure,02/10/2019,92,Chief Exec
Retail,Grocery Stores/Supermarkets,Lidl Gb Havant,Employees related expenditure,02/10/2019,11.86,"Director of Housing, Neighbourhood and Building Services"
Other Supplies,Misc Speciality Retail,Amznmktplace Amazon.Co.Uk,Supplies and Services related expenditure,02/10/2019,14.29,Director of Children's Services and Education
Retail,Grocery Stores/Supermarkets,Aldi Stores Ltd,Supplies and Services related expenditure,02/10/2019,4.33,Director of Adult Services
Government,Govt Serv - Default,Dvla Driver Online,Supplies and Services related expenditure,02/10/2019,34,Director of Children's Services and Education
Transportation,Passenger Railways,Swrailwayselfserve,Transport related expenditure,02/10/2019,28.5,Director of Corporate Services
Retail,Grocery Stores/Supermarkets,Sainsburys S/mkts,Supplies and Services related expenditure,02/10/2019,2.35,Director of Children's Services and Education
Business To Business Eqpt/Furn,Stationery/Office Supplies,Www.Banneruk.Com,Supplies and Services related expenditure,02/10/2019,22.32,"Director of Housing, Neighbourhood and Building Services"
Business To Business Eqpt/Furn,Stationery/Office Supplies,Www.Banneruk.Com,Supplies and Services related expenditure,02/10/2019,14.61,"Director of Culture, Leisure & Regulatory Services"
Government,Govt Serv - Default,Hampshire County Counc,Supplies and Services related expenditure,02/10/2019,56.46,"Director of Culture, Leisure & Regulatory Services"
Other Supplies,Discount Stores,Argos Retail Group,Supplies and Services related expenditure,02/10/2019,99.99,Director of Children's Services and Education
Business To Business Eqpt/Furn,Stationery/Office Supplies,Www.Banneruk.Com,Supplies and Services related expenditure,02/10/2019,32.59,"Director of Housing, Neighbourhood and Building Services"
Business To Business Eqpt/Furn,Stationery/Office Supplies,Www.Banneruk.Com,Supplies and Services related expenditure,02/10/2019,235.45,Director of Adult Services
Transportation,Passenger Railways,Swrailwayselfserve,Transport related expenditure,02/10/2019,16.6,Director of Children's Services and Education
Transportation,"Parking Lots, Meters, Garages",3c_*portsmouth City Co,Transport related expenditure,02/10/2019,3.5,Chief Exec
Transportation,"Parking Lots, Meters, Garages",Winchester City Council,Transport related expenditure,02/10/2019,3.5,Chief Exec
Other Supplies,Misc Speciality Retail,Amznmktplace,Supplies and Services related expenditure,02/10/2019,24.98,Director of Children's Services and Education
Other Supplies,Misc Speciality Retail,Amznmktplace,Premises related expenditure,02/10/2019,14.98,Director of Children's Services and Education
Government,Govt Serv - Default,Portsmouth City Co,Supplies and Services related expenditure,02/10/2019,2.17,Director of Children's Services and Education
Retail,Grocery Stores/Supermarkets,Tesco Stores 4579,Supplies and Services related expenditure,02/10/2019,0.92,Director of Children's Services and Education
Retail,Grocery Stores/Supermarkets,Tesco Stores 4579,Supplies and Services related expenditure,02/10/2019,2.75,Director of Children's Services and Education
Other Supplies,Department Stores,Southern Co-Op 0018,Supplies and Services related expenditure,02/10/2019,4.54,Director of Children's Services and Education
Retail,Grocery Stores/Supermarkets,Tesco Store 3048,Supplies and Services related expenditure,02/10/2019,2.41,"Director of Housing, Neighbourhood and Building Services"
Auto/Vehicle Rentals,Automobile Rental Agency,Rentalcars.Com,Supplies and Services related expenditure,02/10/2019,44.18,"Director of Housing, Neighbourhood and Building Services"
Retail,Tent And Awning Shops,Gazeboshop,Supplies and Services related expenditure,02/10/2019,149.95,"Director of Culture, Leisure & Regulatory Services"
Business To Business Eqpt/Furn,Stationery/Office Supplies,Viking Uk,Supplies and Services related expenditure,02/10/2019,12.87,Director of Finance & Resources
Auto/Vehicle Rentals,Automobile Rental Agency,Southern Motor Contrac,Transport related expenditure,02/10/2019,4391.87,Director of Regeneration
Auto/Vehicle Expenses,Auto Service Shops/Non Dealer,Boarhunt Group-Vt,Transport related expenditure,02/10/2019,9.5,"Director of Culture, Leisure & Regulatory Services"
Auto/Vehicle Expenses,Auto Service Shops/Non Dealer,Boarhunt Group-Vt,Transport related expenditure,02/10/2019,236.86,"Director of Culture, Leisure & Regulatory Services"
Other Supplies,Misc Speciality Retail,Amznmktplace,Supplies and Services related expenditure,02/10/2019,44.94,Director of Corporate Services
Miscellaneous,Member Organizations - Def,Www.Cipfa.Org.Uk/pfmco,Employees related expenditure,02/10/2019,345,Director of Finance & Resources
Transportation,Passenger Railways,Swrailwayselfserve,Transport related expenditure,02/10/2019,5.5,Director of Finance & Resources
Other Supplies,Misc Speciality Retail,Amznmktplace Amazon.Co.Uk,Supplies and Services related expenditure,02/10/2019,-58.33,Director of Children's Services and Education
Facilities/Repair Services,Landscape/Horticultural Se,Alsoils + Ltd,Supplies and Services related expenditure,02/10/2019,86.63,"Director of Housing, Neighbourhood and Building Services"
Retail,Grocery Stores/Supermarkets,Asda Stores,Supplies and Services related expenditure,02/10/2019,26.57,Director of Children's Services and Education
Business To Business Services,Misc Publishing & Printing,Www.Informa.Com,Supplies and Services related expenditure,02/10/2019,42.99,"Director of Housing, Neighbourhood and Building Services"
Retail,Grocery Stores/Supermarkets,Tesco Store 3055,Supplies and Services related expenditure,02/10/2019,2.5,"Director of Housing, Neighbourhood and Building Services"
Transportation,Passenger Railways,Trainline,Transport related expenditure,02/10/2019,12.97,Director of Children's Services and Education
Transportation,Passenger Railways,Trainline,Transport related expenditure,02/10/2019,28.12,Director of Children's Services and Education
Transportation,"Parking Lots, Meters, Garages",Ringoparkbyphone,Transport related expenditure,02/10/2019,7.17,Director of Regeneration
Transportation,Passenger Railways,Swrailwayselfserve,Transport related expenditure,02/10/2019,11.9,Chief Exec
Retail,Grocery Stores/Supermarkets,Sainsburys S/mkts,Supplies and Services related expenditure,02/10/2019,0.83,"Director of Culture, Leisure & Regulatory Services"
Retail,Grocery Stores/Supermarkets,Sainsburys S/mkts,Supplies and Services related expenditure,02/10/2019,2.35,"Director of Culture, Leisure & Regulatory Services"
Retail,Electronics Sales,Currys Online,Supplies and Services related expenditure,02/10/2019,216.63,"Director of Housing, Neighbourhood and Building Services"
Retail,Grocery Stores/Supermarkets,Tesco Stores 4579,Supplies and Services related expenditure,02/10/2019,10,Director of Children's Services and Education
Other Supplies,Misc Speciality Retail,Www.Firedetectionshop.,Premises related expenditure,02/10/2019,16.95,Director of Children's Services and Education
Transportation,Passenger Railways,Sw Railway App,Transport related expenditure,02/10/2019,12,Director of Children's Services and Education
Business To Business Eqpt/Furn,Stationery/Office Supplies,Www.Banneruk.Com,Supplies and Services related expenditure,02/10/2019,14.63,Director of Children's Services and Education
Transportation,Passenger Railways,Sw Railway App,Transport related expenditure,02/10/2019,37.9,Director of Children's Services and Education
Other Supplies,Misc Speciality Retail,Amznmktplace,Supplies and Services related expenditure,02/10/2019,9.98,Director of Adult Services
Other Supplies,Misc Speciality Retail,Amznmktplace,Supplies and Services related expenditure,02/10/2019,3.74,Director of Adult Services
Medical,Lab/Med/Hospital Equipment,Wightman & Parrish,Supplies and Services related expenditure,02/10/2019,198.93,Director of Adult Services
Eating And Drinking Places,Fast Food Restaurants,McDonalds,Supplies and Services related expenditure,02/10/2019,3.24,Director of Children's Services and Education
Transportation,Passenger Railways,Trainline.Com,Transport related expenditure,02/10/2019,16.12,Chief Exec
Utilities,Phone Serv/Equip Utility,O2,Supplies and Services related expenditure,02/10/2019,17.78,Director of Children's Services and Education
Other Supplies,Misc Speciality Retail,Amznmktplace Amazon.Co.Uk,Supplies and Services related expenditure,02/10/2019,26.43,Director of Children's Services and Education
Other Supplies,Misc Speciality Retail,Amznmktplace Amazon.Co.Uk,Supplies and Services related expenditure,02/10/2019,17.05,Director of Children's Services and Education
Other Supplies,Misc Speciality Retail,Amznmktplace Amazon.Co.Uk,Supplies and Services related expenditure,02/10/2019,11.24,Director of Children's Services and Education
Transportation,Passenger Railways,Sw Railway App,Transport related expenditure,02/10/2019,209.8,Director of Children's Services and Education
Transportation,Passenger Railways,Sw Railway App,Transport related expenditure,02/10/2019,229.3,Director of Children's Services and Education
Entertainment,Member Clubs/Sport/Rec/Golf,Horizon Leisure Trust,Agency and Third Party Payments related expenditure,02/10/2019,2.75,Director of Children's Services and Education
Retail,Grocery Stores/Supermarkets,Tesco Stores 2494,Supplies and Services related expenditure,02/10/2019,1,Director of Adult Services
Retail,Grocery Stores/Supermarkets,Tesco Stores 4579,Supplies and Services related expenditure,02/10/2019,3.33,Director of Children's Services and Education
Transportation,"Parking Lots, Meters, Garages",Sip Car Parks Limited,Transport related expenditure,02/10/2019,7,"Director of Housing, Neighbourhood and Building Services"
Miscellaneous,Civic/Social/Fraternal Assc,Highstreetvouchers,Supplies and Services related expenditure,02/10/2019,25,Director of Children's Services and Education
Other Supplies,Misc Speciality Retail,Amznmktplace,Supplies and Services related expenditure,02/10/2019,27.03,Director of Children's Services and Education
Business Expenses/Services,Postage Stamps,Post Office Counter,Supplies and Services related expenditure,02/10/2019,99.75,Director of Children's Services and Education
Retail,Electronics Sales,Currys Pc World,Supplies and Services related expenditure,02/10/2019,249.1,Director of Children's Services and Education
Government,Schools - Default,Twinkl Limited,Supplies and Services related expenditure,02/10/2019,84.9,Director of Regeneration
Government,Schools - Default,Www.Ncfe.Org.Uk,Supplies and Services related expenditure,02/10/2019,480,Director of Regeneration
Retail,Grocery Stores/Supermarkets,Tesco Store 3186,Supplies and Services related expenditure,02/10/2019,2.15,Director of Children's Services and Education
Retail,Grocery Stores/Supermarkets,Tesco Store 3186,Supplies and Services related expenditure,02/10/2019,1.29,Director of Children's Services and Education
Equipment And Furniture,Furniture/Equip Stores,Www.Ikea.Com,Supplies and Services related expenditure,02/10/2019,8.29,Director of Children's Services and Education
Miscellaneous,Misc Personal Serv - Def,Portsmouth Cultural Trus,Supplies and Services related expenditure,02/10/2019,22.92,Director of Finance & Resources
Other Supplies,Department Stores,Southern Co-Op 0027,Supplies and Services related expenditure,02/10/2019,10.55,Director of Children's Services and Education
Retail,Grocery Stores/Supermarkets,Tesco Stores 4579,Supplies and Services related expenditure,02/10/2019,1.6,Director of Children's Services and Education
Retail,Grocery Stores/Supermarkets,Lidl Gb Portsmouth,Supplies and Services related expenditure,02/10/2019,3.13,Director of Children's Services and Education
Clothing/Shoes/Uniforms,Mens/Womens Clothing Stores,Matalan,Supplies and Services related expenditure,02/10/2019,28.42,Director of Children's Services and Education
Transportation,Local Commuter Transport,Hovertravel Ltd,Supplies and Services related expenditure,02/10/2019,19.36,Director of Children's Services and Education
Other Supplies,Discount Stores,Www.Argos.Co.Uk,Supplies and Services related expenditure,02/10/2019,208.33,Director of Children's Services and Education
Other Supplies,Discount Stores,Www.Argos.Co.Uk,Supplies and Services related expenditure,02/10/2019,508.32,Director of Children's Services and Education
Business To Business Eqpt/Furn,Book Stores,Waterstones,Supplies and Services related expenditure,02/10/2019,5.83,"Director of Culture, Leisure & Regulatory Services"
Retail,Hobby/Toy/Game Stores,Coconut Toys & Fancy D,Supplies and Services related expenditure,02/10/2019,13.32,"Director of Culture, Leisure & Regulatory Services"
Other Supplies,Misc Speciality Retail,Amznmktplace Amazon.Co.Uk,Agency and Third Party Payments related expenditure,02/10/2019,10.99,Director of Children's Services and Education
Business Expenses/Services,Books/Periodicals/Newspapers,Abebooks,Supplies and Services related expenditure,02/10/2019,1.9,Director of Children's Services and Education
Business Expenses/Services,Books/Periodicals/Newspapers,Abebooks,Supplies and Services related expenditure,02/10/2019,2.18,Director of Children's Services and Education
Business Expenses/Services,Books/Periodicals/Newspapers,Abebooks,Supplies and Services related expenditure,02/10/2019,3.79,Director of Children's Services and Education
Other Supplies,Misc Speciality Retail,Amznmktplace,Supplies and Services related expenditure,02/10/2019,10.83,Director of Children's Services and Education
Government,Govt Serv - Default,Disclosure & Barring,Supplies and Services related expenditure,02/10/2019,13,Director of Children's Services and Education
Other Supplies,Misc Speciality Retail,Amznmktplace,Premises related expenditure,02/10/2019,13.33,Director of Children's Services and Education
Other Supplies,Misc Speciality Retail,Amznmktplace,Supplies and Services related expenditure,02/10/2019,9.58,Director of Children's Services and Education
Other Supplies,Misc Speciality Retail,Www.Cgpbooks.Co.Uk,Supplies and Services related expenditure,02/10/2019,38.95,Director of Children's Services and Education
Entertainment,Bands/Orchestras/Entertain,Bh Live-Accounts,Supplies and Services related expenditure,02/10/2019,79.95,Director of Children's Services and Education
Miscellaneous,Other Direct Marketers,Amazon.Co.Uk,Supplies and Services related expenditure,02/10/2019,125.76,Director of Children's Services and Education
Government,Govt Serv - Default,Hampshire County Counc,Supplies and Services related expenditure,02/10/2019,287.51,Director of Children's Services and Education
Auto/Vehicle Expenses,Auto Body Repair Shops,Evolution Autocentre,Transport related expenditure,01/10/2019,1674,Director of Children's Services and Education
Facilities/Repair Supplies,Home Supply Warehouse Stores,B & Q 1260,Supplies and Services related expenditure,02/10/2019,5.83,Director of Adult Services
Hotels And Motels,Premier Travel Inns,Premier Inn44016890,Agency and Third Party Payments related expenditure,02/10/2019,522.08,"Director of Housing, Neighbourhood and Building Services"
Facilities/Repair Supplies,Home Supply Warehouse Stores,B & Q 1260,Supplies and Services related expenditure,02/10/2019,35.46,"Director of Housing, Neighbourhood and Building Services"
Facilities/Repair Supplies,Home Supply Warehouse Stores,B & Q 1260,Supplies and Services related expenditure,02/10/2019,29.17,"Director of Housing, Neighbourhood and Building Services"
Automobile Services & Supplies,Service Stations,Mrh Cosham Service Statio,Transport related expenditure,02/10/2019,75.18,Director of Children's Services and Education
Hotels And Motels,Premier Travel Inns,Premier Inn 44537180,Agency and Third Party Payments related expenditure,02/10/2019,539.58,"Director of Housing, Neighbourhood and Building Services"
Business To Business Other Sup,Uniforms & Commercial Clothing,Arco Ltd,Supplies and Services related expenditure,02/10/2019,83.88,"Director of Housing, Neighbourhood and Building Services"
Facilities/Repair Supplies,Home Supply Warehouse Stores,B & Q 1260,Supplies and Services related expenditure,02/10/2019,12.25,Director of Children's Services and Education
Hotels And Motels,Premier Travel Inns,Premier Inn 44536680,Supplies and Services related expenditure,02/10/2019,99,Director of Children's Services and Education
Business To Business Facility/,Electrical Parts/Equipment,Premier Farnell,Supplies and Services related expenditure,02/10/2019,129.91,Director of Portsmouth International Port
Equipment And Furniture,Household Appliance Stores,Ebuyer (UK) Ltd,Supplies and Services related expenditure,02/10/2019,117.06,Director of Finance & Resources
Hotels And Motels,Premier Travel Inns,Premier Inn44521360,Supplies and Services related expenditure,02/10/2019,90.42,Director of Children's Services and Education
Business To Business Other Sup,Uniforms & Commercial Clothing,Arco Ltd,Supplies and Services related expenditure,02/10/2019,213.36,"Director of Housing, Neighbourhood and Building Services"
Facilities/Repair Supplies,Home Supply Warehouse Stores,B & Q 1238,Supplies and Services related expenditure,02/10/2019,45,"Director of Housing, Neighbourhood and Building Services"
Eating And Drinking Places,Fast Food Restaurants,Dominos Pizza,Supplies and Services related expenditure,02/10/2019,118.27,Director of Children's Services and Education
Eating And Drinking Places,Fast Food Restaurants,Dominos Pizza,Supplies and Services related expenditure,02/10/2019,154.13,Director of Children's Services and Education
Clothing/Shoes/Uniforms,Family Clothing Stores,Primark,Supplies and Services related expenditure,02/10/2019,6.67,"Director of Culture, Leisure & Regulatory Services"
Other Supplies,Misc Speciality Retail,Harper Collins Publish,Supplies and Services related expenditure,02/10/2019,12.18,Director of Children's Services and Education
Other Supplies,Misc Speciality Retail,Amznmktplace Amazon.Co.Uk,Premises related expenditure,02/10/2019,13.33,Director of Children's Services and Education
Facilities/Repair Supplies,Home Supply Warehouse Stores,B & Q 1260,Premises related expenditure,02/10/2019,13.95,Director of Children's Services and Education
Business To Business Facility/,Industrial Supplies - Def,Www.Arco.Co.Uk,Supplies and Services related expenditure,03/10/2019,11.16,"Director of Housing, Neighbourhood and Building Services"
Transportation,Passenger Railways,Swrailway Tck Off,Supplies and Services related expenditure,03/10/2019,12,Director of Children's Services and Education
Professional Services,Mgmt/Consult/Public Rel Ser,Westminster Forum Proj,Supplies and Services related expenditure,03/10/2019,460,Director of Portsmouth International Port
Business Services,Business Services - Default,Eb *2019 International,Supplies and Services related expenditure,03/10/2019,850,Director of Portsmouth International Port
Retail,Grocery Stores/Supermarkets,Tesco Stores 2322,Supplies and Services related expenditure,03/10/2019,2.38,Director of Children's Services and Education
Retail,Grocery Stores/Supermarkets,Asda Groceries Online,Supplies and Services related expenditure,03/10/2019,5,Director of Children's Services and Education
Facilities/Repair Supplies,Home Supply Warehouse Stores,B & Q 1260,Supplies and Services related expenditure,03/10/2019,39.17,Director of Children's Services and Education
Medical,Lab/Med/Hospital Equipment,Wightman & Parrish,Supplies and Services related expenditure,03/10/2019,1941.75,"Director of Housing, Neighbourhood and Building Services"
Business To Business Eqpt/Furn,Stationery/Office Supplies,Www.Banneruk.Com,Supplies and Services related expenditure,03/10/2019,7,Director of Corporate Services
Business To Business Eqpt/Furn,Stationery/Office Supplies,Www.Banneruk.Com,Supplies and Services related expenditure,03/10/2019,20.77,Director of Corporate Services
Miscellaneous,Charitable/Soc Service Orgs,The Salvation Army,Capital related expenditure,03/10/2019,190,Capital - Housing RA
Freight/Courier/Warehouse Svcs,Public Warehousing,Big Yellow S S Portsmout,Premises related expenditure,03/10/2019,84,"Director of Housing, Neighbourhood and Building Services"
Freight/Courier/Warehouse Svcs,Public Warehousing,Big Yellow S S Portsmout,Premises related expenditure,03/10/2019,126.67,"Director of Housing, Neighbourhood and Building Services"
Hotels And Motels,Travelodge,Travelodge Gb0000,Agency and Third Party Payments related expenditure,03/10/2019,147,"Director of Housing, Neighbourhood and Building Services"
Hotels And Motels,Travelodge,Travelodge Gb0000,Agency and Third Party Payments related expenditure,03/10/2019,1625.06,"Director of Housing, Neighbourhood and Building Services"
Other Supplies,Misc Speciality Retail,Amznmktplace,Premises related expenditure,03/10/2019,26.55,"Director of Housing, Neighbourhood and Building Services"
Business To Business Eqpt/Furn,Stationery/Office Supplies,Www.Banneruk.Com,Supplies and Services related expenditure,03/10/2019,28,Director of Regeneration
Medical,Lab/Med/Hospital Equipment,Wightman & Parrish,Premises related expenditure,03/10/2019,490.58,"Director of Housing, Neighbourhood and Building Services"
Automobile Services & Supplies,Service Stations,Asda Petrol 4583,Transport related expenditure,03/10/2019,55.72,"Director of Housing, Neighbourhood and Building Services"
Business To Business Eqpt/Furn,Stationery/Office Supplies,Www.Banneruk.Com,Supplies and Services related expenditure,03/10/2019,0.96,Director of Regeneration
Business To Business Eqpt/Furn,Stationery/Office Supplies,Www.Banneruk.Com,Supplies and Services related expenditure,03/10/2019,100.35,Director of Regeneration
Government,Govt Serv - Default,Hm Passport Office,Supplies and Services related expenditure,03/10/2019,85,Director of Children's Services and Education
Government,Govt Serv - Default,Hm Passport Office,Supplies and Services related expenditure,03/10/2019,58.5,Director of Children's Services and Education
Facilities/Repair Supplies,Home Supply Warehouse Stores,B & Q 1260,Supplies and Services related expenditure,03/10/2019,143.18,Director of Regeneration
Retail,Misc Food Stores - Default,M&s Simply Food - Ssp,Supplies and Services related expenditure,03/10/2019,5,Director of Children's Services and Education
Transportation,Passenger Railways,Nmbs Gent Tvm,Transport related expenditure,03/10/2019,8.27,Director of Children's Services and Education
Business To Business Eqpt/Furn,Stationery/Office Supplies,Www.Banneruk.Com,Supplies and Services related expenditure,03/10/2019,4.4,Capital - Environment & Climate Change
Business To Business Eqpt/Furn,Stationery/Office Supplies,Www.Banneruk.Com,Supplies and Services related expenditure,03/10/2019,0.9,Capital - Environment & Climate Change
Business To Business Eqpt/Furn,Stationery/Office Supplies,Www.Banneruk.Com,Supplies and Services related expenditure,03/10/2019,1.64,Capital - Environment & Climate Change
Business To Business Eqpt/Furn,Stationery/Office Supplies,Www.Banneruk.Com,Supplies and Services related expenditure,03/10/2019,28.48,Director of Regeneration
Business To Business Eqpt/Furn,Stationery/Office Supplies,Www.Banneruk.Com,Supplies and Services related expenditure,03/10/2019,0.9,Capital - Environment & Climate Change
Business To Business Eqpt/Furn,Stationery/Office Supplies,Www.Banneruk.Com,Supplies and Services related expenditure,03/10/2019,16.8,Capital - Environment & Climate Change
Business To Business Eqpt/Furn,Stationery/Office Supplies,Www.Banneruk.Com,Supplies and Services related expenditure,03/10/2019,9.87,Capital - Environment & Climate Change
Business To Business Eqpt/Furn,Stationery/Office Supplies,Www.Banneruk.Com,Supplies and Services related expenditure,03/10/2019,2.34,Capital - Environment & Climate Change
Business To Business Eqpt/Furn,Stationery/Office Supplies,Www.Banneruk.Com,Supplies and Services related expenditure,03/10/2019,2.8,Director of Regeneration
Business To Business Eqpt/Furn,Stationery/Office Supplies,Www.Banneruk.Com,Supplies and Services related expenditure,03/10/2019,17.98,Director of Regeneration
Business To Business Eqpt/Furn,Stationery/Office Supplies,Www.Banneruk.Com,Supplies and Services related expenditure,03/10/2019,40.85,Director of Regeneration
Facilities/Repair Supplies,Home Supply Warehouse Stores,B & Q 1260,Supplies and Services related expenditure,03/10/2019,25,"Director of Housing, Neighbourhood and Building Services"
Government,Vocational/Trade Schools,Novadata Tachograph An,Supplies and Services related expenditure,03/10/2019,33,"Director of Culture, Leisure & Regulatory Services"
Facilities/Repair Supplies,Hardware Stores,Toolstation Ltd,Premises related expenditure,03/10/2019,8.65,Director of Children's Services and Education
Facilities/Repair Supplies,Home Supply Warehouse Stores,B & Q 1260,Supplies and Services related expenditure,03/10/2019,10,Director of Children's Services and Education
Other Supplies,Misc Speciality Retail,Amznmktplace,Supplies and Services related expenditure,03/10/2019,29.79,Director of Children's Services and Education
Other Supplies,Discount Stores,Argos Retail Group,Supplies and Services related expenditure,03/10/2019,12.49,Director of Adult Services
Business Services,Business Services - Default,Www.Transportxtra.Com,Supplies and Services related expenditure,03/10/2019,75,Director of Regeneration
Hotels And Motels,Travelodge,Travelodge Gb0000,Agency and Third Party Payments related expenditure,03/10/2019,393.75,"Director of Housing, Neighbourhood and Building Services"
Hotels And Motels,Travelodge,Travelodge Gb0000,Agency and Third Party Payments related expenditure,03/10/2019,1930.67,"Director of Housing, Neighbourhood and Building Services"
Clothing/Shoes/Uniforms,Men/Boys Clothing/Acc Stores,Www.,Supplies and Services related expenditure,03/10/2019,38.32,Director of Regeneration
Clothing/Shoes/Uniforms,Misc Apparel/Access Shops,Patrolstore.Com,Supplies and Services related expenditure,03/10/2019,145.82,Director of Regeneration
Retail,Electronics Sales,Www.Radio-Solution.Co.,Supplies and Services related expenditure,03/10/2019,149.95,Director of Regeneration
Retail,Grocery Stores/Supermarkets,Wm Morrisons Store,Supplies and Services related expenditure,03/10/2019,7.25,Director of Children's Services and Education
Hotels And Motels,Travelodge,Travelodge Gb0000,Agency and Third Party Payments related expenditure,03/10/2019,168,"Director of Housing, Neighbourhood and Building Services"
Hotels And Motels,Travelodge,Travelodge Gb0000,Agency and Third Party Payments related expenditure,03/10/2019,856.45,"Director of Housing, Neighbourhood and Building Services"
Transportation,Passenger Railways,Swrailway Tck Off,Transport related expenditure,03/10/2019,44.8,Director of Children's Services and Education
Business Expenses/Services,Postage Stamps,Post Office Counter,Supplies and Services related expenditure,03/10/2019,50,Director of Children's Services and Education
Business Expenses/Services,Postage Stamps,Post Office Counter,Supplies and Services related expenditure,03/10/2019,168,Director of Children's Services and Education
Business To Business Eqpt/Furn,Stationery/Office Supplies,Www.Banneruk.Com,Supplies and Services related expenditure,03/10/2019,50.11,"Director of Culture, Leisure & Regulatory Services"
Transportation,Passenger Railways,Trainline.Com,Transport related expenditure,03/10/2019,54.61,Director of Children's Services and Education
Miscellaneous,Charitable/Soc Service Orgs,Paypal,Supplies and Services related expenditure,03/10/2019,174.18,Director of Children's Services and Education
Entertainment,Billiard/Pool Establishment,Craneswater Club,Supplies and Services related expenditure,03/10/2019,3.79,Director of Children's Services and Education
Transportation,"Parking Lots, Meters, Garages",Southampton University,Transport related expenditure,03/10/2019,4.5,Director of Children's Services and Education
Medical,Lab/Med/Hospital Equipment,Www.Wmsplc.Co.Uk,Supplies and Services related expenditure,03/10/2019,142.97,Director of Public Health
Transportation,"Parking Lots, Meters, Garages",3c_*portsmouth City Co,Transport related expenditure,03/10/2019,1.33,Director of Children's Services and Education
Retail,Grocery Stores/Supermarkets,Sainsburys S/mkts,Supplies and Services related expenditure,03/10/2019,0.08,Director of Children's Services and Education
Retail,Grocery Stores/Supermarkets,Sainsburys S/mkts,Supplies and Services related expenditure,03/10/2019,12.15,Director of Children's Services and Education
Digital Goods,Digital Goods - Games,Microsoft*store,Supplies and Services related expenditure,03/10/2019,41.99,Director of Children's Services and Education
Business Expenses/Services,Courier Services,Delivered UK Ltd,Supplies and Services related expenditure,03/10/2019,23.85,Director of Regeneration
Business To Business Eqpt/Furn,Stationery/Office Supplies,Www.Banneruk.Com,Supplies and Services related expenditure,03/10/2019,8.63,Director of Public Health
Other Supplies,Misc Speciality Retail,Amznmktplace,Supplies and Services related expenditure,03/10/2019,4.97,Director of Children's Services and Education
Business To Business Facility/,Electrical Parts/Equipment,Edmundson Electrical,Premises related expenditure,03/10/2019,8.3,Director of Portsmouth International Port
Business To Business Facility/,Electrical Parts/Equipment,Farnell,Premises related expenditure,03/10/2019,14.66,Director of Portsmouth International Port
Business To Business Facility/,Industrial Supplies - Def,Express Weldcare Services,Premises related expenditure,03/10/2019,160.2,Director of Portsmouth International Port
Business To Business Eqpt/Furn,Stationery/Office Supplies,Www.Banneruk.Com,Supplies and Services related expenditure,03/10/2019,11.08,"Director of Culture, Leisure & Regulatory Services"
Business To Business Eqpt/Furn,Stationery/Office Supplies,Www.Banneruk.Com,Supplies and Services related expenditure,03/10/2019,14.65,"Director of Culture, Leisure & Regulatory Services"
Business Services,Business Services - Default,Posturite Ltd,Supplies and Services related expenditure,03/10/2019,78.42,"Director of Culture, Leisure & Regulatory Services"
Other Supplies,Misc Speciality Retail,Amznmktplace,Supplies and Services related expenditure,03/10/2019,121.23,Director of Finance & Resources
Eating And Drinking Places,Fast Food Restaurants,Subway Ocean Park,Supplies and Services related expenditure,03/10/2019,8.14,Director of Children's Services and Education
Eating And Drinking Places,Fast Food Restaurants,Starbucks Coffee,Supplies and Services related expenditure,03/10/2019,8.15,Director of Children's Services and Education
Eating And Drinking Places,Fast Food Restaurants,Starbucks Coffee,Supplies and Services related expenditure,03/10/2019,3.08,Director of Children's Services and Education
Medical,Lab/Med/Hospital Equipment,Wightman & Parrish,Premises related expenditure,03/10/2019,387.78,"Director of Housing, Neighbourhood and Building Services"
Business To Business Eqpt/Furn,Book Stores,Waterstones,Supplies and Services related expenditure,03/10/2019,3.58,Director of Children's Services and Education
Retail,Hobby/Toy/Game Stores,Game Retail,Supplies and Services related expenditure,03/10/2019,4.17,Director of Children's Services and Education
Eating And Drinking Places,Fast Food Restaurants,Costa Coffee 43042195,Supplies and Services related expenditure,03/10/2019,2.21,Director of Children's Services and Education
Eating And Drinking Places,Fast Food Restaurants,Costa Coffee 43042195,Supplies and Services related expenditure,03/10/2019,3.75,Director of Children's Services and Education
Retail,Grocery Stores/Supermarkets,Tesco Stores 6002,Supplies and Services related expenditure,03/10/2019,6.16,Director of Children's Services and Education
Retail,Grocery Stores/Supermarkets,Tesco Stores 6002,Supplies and Services related expenditure,03/10/2019,131.57,Director of Children's Services and Education
Miscellaneous,Fines,Combined Court Cen,Supplies and Services related expenditure,03/10/2019,455,Director of Children's Services and Education
Transportation,Travel Agencies,China Holidays Ltd,Agency and Third Party Payments related expenditure,03/10/2019,137.5,"Director of Culture, Leisure & Regulatory Services"
Transportation,Travel Agencies,China Holidays Ltd,Agency and Third Party Payments related expenditure,03/10/2019,92.5,"Director of Culture, Leisure & Regulatory Services"
Transportation,"Parking Lots, Meters, Garages",Portsmouth City Co,Transport related expenditure,03/10/2019,10.25,Chief Exec
Business Expenses/Services,Postage Stamps,Post Office Counter,Supplies and Services related expenditure,03/10/2019,32.33,Director of Children's Services and Education
Equipment And Furniture,Furniture/Equip Stores,Paypal,Supplies and Services related expenditure,03/10/2019,-299.99,Director of Children's Services and Education
Eating And Drinking Places,Eating Places/Restaurants,Greggs Plc,Supplies and Services related expenditure,03/10/2019,3.85,Director of Children's Services and Education
Eating And Drinking Places,Fast Food Restaurants,Subway Ocean Park,Supplies and Services related expenditure,03/10/2019,1.49,Director of Children's Services and Education
Eating And Drinking Places,Fast Food Restaurants,Subway Ocean Park,Supplies and Services related expenditure,03/10/2019,6.38,Director of Children's Services and Education
Business To Business Eqpt/Furn,Stationery/Office Supplies,Www.Banneruk.Com,Supplies and Services related expenditure,03/10/2019,30.82,"Director of Culture, Leisure & Regulatory Services"
Retail,Grocery Stores/Supermarkets,Wm Morrisons Store,Supplies and Services related expenditure,03/10/2019,5.18,"Director of Housing, Neighbourhood and Building Services"
Other Supplies,Department Stores,Southern Co-Op 0018,Supplies and Services related expenditure,03/10/2019,3.95,Director of Children's Services and Education
Miscellaneous,Other Direct Marketers,Amazon.Co.Uk,Supplies and Services related expenditure,03/10/2019,27.32,Director of Children's Services and Education
Business To Business Eqpt/Furn,Stationery/Office Supplies,Www.Banneruk.Com,Supplies and Services related expenditure,03/10/2019,33.87,"Director of Housing, Neighbourhood and Building Services"
Transportation,"Parking Lots, Meters, Garages",Portsmouth City Co,Transport related expenditure,03/10/2019,1.08,Director of Children's Services and Education
Business To Business Eqpt/Furn,Stationery/Office Supplies,Www.Banneruk.Com,Supplies and Services related expenditure,03/10/2019,21.6,"Director of Housing, Neighbourhood and Building Services"
Transportation,Passenger Railways,Swrailway Tck Off,Supplies and Services related expenditure,03/10/2019,9.17,Director of Children's Services and Education
Retail,Barber/Beauty Shops,Www.Salon-Services.Com,Supplies and Services related expenditure,03/10/2019,348.94,Director of Children's Services and Education
Business To Business Other Sup,Uniforms & Commercial Clothing,Alexandra Website,Supplies and Services related expenditure,03/10/2019,553.95,Director of Adult Services
Business To Business Facility/,Electrical Parts/Equipment,Quantum Electrical Distri,Supplies and Services related expenditure,03/10/2019,560.07,Director of Adult Services
Transportation,Passenger Railways,Swrailwayselfserve,Transport related expenditure,03/10/2019,5,Director of Children's Services and Education
Retail,Shoe Repair/Shine/Hat Clean,Timpson Ltd,Supplies and Services related expenditure,03/10/2019,6.75,Director of Children's Services and Education
Retail,Sporting Goods Stores,Www.Kurling.Com,Supplies and Services related expenditure,03/10/2019,52.5,"Director of Housing, Neighbourhood and Building Services"
Transportation,Passenger Railways,Swrailwayselfserve,Transport related expenditure,03/10/2019,4.5,Chief Exec
Transportation,Passenger Railways,Swrailway Tck Off,Supplies and Services related expenditure,03/10/2019,80.9,Chief Exec
Miscellaneous,Charitable/Soc Service Orgs,Coram Academy Ltd,Supplies and Services related expenditure,03/10/2019,52.35,Director of Children's Services and Education
Retail,Grocery Stores/Supermarkets,Wm Morrisons Store,Supplies and Services related expenditure,03/10/2019,0.79,Director of Children's Services and Education
Retail,Grocery Stores/Supermarkets,Wm Morrisons Store,Supplies and Services related expenditure,03/10/2019,14.98,Director of Children's Services and Education
Retail,Grocery Stores/Supermarkets,Tesco Store 3048,Supplies and Services related expenditure,03/10/2019,43.13,Director of Children's Services and Education
Retail,Sporting Goods Stores,Sportsdirect 219,Supplies and Services related expenditure,03/10/2019,2.5,"Director of Housing, Neighbourhood and Building Services"
Equipment And Furniture,Household Appliance Stores,Wilko Retail Limit,Supplies and Services related expenditure,03/10/2019,20.67,"Director of Housing, Neighbourhood and Building Services"
Government,Schools - Default,Vue*ncs Citb Hs&e Test,Agency and Third Party Payments related expenditure,03/10/2019,21,Director of Regeneration
Government,Schools - Default,Vue*ncs Citb Hs&e Test,Agency and Third Party Payments related expenditure,03/10/2019,21,Director of Regeneration
Government,Schools - Default,Vue*ncs Citb Hs&e Test,Agency and Third Party Payments related expenditure,03/10/2019,21,Director of Regeneration
Government,Schools - Default,Vue*ncs Citb Hs&e Test,Agency and Third Party Payments related expenditure,03/10/2019,21,Director of Regeneration
Government,Schools - Default,Vue*ncs Citb Hs&e Test,Agency and Third Party Payments related expenditure,03/10/2019,21,Director of Regeneration
Government,Schools - Default,Vue*ncs Citb Hs&e Test,Agency and Third Party Payments related expenditure,03/10/2019,21,Director of Regeneration
Government,Schools - Default,Vue*ncs Citb Hs&e Test,Agency and Third Party Payments related expenditure,03/10/2019,21,Director of Regeneration
Government,Schools - Default,Vue*ncs Citb Hs&e Test,Agency and Third Party Payments related expenditure,03/10/2019,21,Director of Regeneration
Business Services,Business Services - Default,Fast Key Services Limi,Supplies and Services related expenditure,03/10/2019,2.49,Director of Finance & Resources
Business Services,Business Services - Default,Fast Key Services Limi,Supplies and Services related expenditure,03/10/2019,1.07,Director of Finance & Resources
Other Supplies,Misc Speciality Retail,Amazon.Co.Uk,Premises related expenditure,03/10/2019,26.66,Director of Children's Services and Education
Retail,Grocery Stores/Supermarkets,Asda Superstore,Supplies and Services related expenditure,03/10/2019,3.96,Director of Adult Services
Automobile Services & Supplies,Service Stations,Tesco Pfs 4274,Premises related expenditure,03/10/2019,5,"Director of Culture, Leisure & Regulatory Services"
Facilities/Repair Supplies,Hardware Stores,Www.Toolstation.Com,Premises related expenditure,03/10/2019,29.78,Director of Children's Services and Education
Government,Govt Serv - Default,Portsmouth City Co,Transport related expenditure,03/10/2019,6.67,Director of Children's Services and Education
Facilities Maintenance,Disinfect/Exterminate Serv,Pelsis Ltd,Employees related expenditure,03/10/2019,130,"Director of Culture, Leisure & Regulatory Services"
Facilities/Repair Supplies,Lumber/Build. Supply Stores,Screwfix Portsmouth,Supplies and Services related expenditure,03/10/2019,204.98,"Director of Culture, Leisure & Regulatory Services"
Retail,Grocery Stores/Supermarkets,Fruit Basket Ltd,Supplies and Services related expenditure,03/10/2019,22.74,Director of Adult Services
Retail,Grocery Stores/Supermarkets,Co-Op Group 310643,Supplies and Services related expenditure,03/10/2019,2.2,Director of Children's Services and Education
Retail,Hobby/Toy/Game Stores,Paypal,Supplies and Services related expenditure,03/10/2019,123.43,Director of Children's Services and Education
Facilities/Repair Supplies,Home Supply Warehouse Stores,B & Q 1260,Supplies and Services related expenditure,03/10/2019,52.91,"Director of Housing, Neighbourhood and Building Services"
Other Supplies,Misc Speciality Retail,Amznmktplace,Supplies and Services related expenditure,03/10/2019,2.42,Director of Children's Services and Education
Other Supplies,Misc Speciality Retail,Amznmktplace,Supplies and Services related expenditure,03/10/2019,16.5,Director of Children's Services and Education
Medical,Lab/Med/Hospital Equipment,Wightman & Parrish,Premises related expenditure,03/10/2019,66.84,"Director of Housing, Neighbourhood and Building Services"
Retail,Grocery Stores/Supermarkets,Tesco Store 3055,Supplies and Services related expenditure,03/10/2019,1.65,"Director of Housing, Neighbourhood and Building Services"
Retail,Pet Stores/Food & Supply,Jollyes The Pet Supers,Supplies and Services related expenditure,03/10/2019,11.08,"Director of Housing, Neighbourhood and Building Services"
Medical,Doctors,H And G Healthcare Ltd,Supplies and Services related expenditure,03/10/2019,805,Director of Public Health
Other Supplies,Misc Speciality Retail,Amznmktplace,Supplies and Services related expenditure,03/10/2019,3.75,Solent LEP
Business Expenses/Services,Postage Stamps,Postoffice Selfservice,Supplies and Services related expenditure,03/10/2019,26.1,Solent LEP
Transportation,Passenger Railways,Sw Railway App,Supplies and Services related expenditure,03/10/2019,82.4,Director of Children's Services and Education
Retail,Electronics Sales,Currys Online,Supplies and Services related expenditure,03/10/2019,306.66,"Director of Housing, Neighbourhood and Building Services"
Miscellaneous,Other Direct Marketers,Amazon.Co.Uk,Supplies and Services related expenditure,03/10/2019,27.24,Director of Children's Services and Education
Eating And Drinking Places,Eating Places/Restaurants,Greggs Plc,Supplies and Services related expenditure,03/10/2019,0.96,Director of Children's Services and Education
Eating And Drinking Places,Eating Places/Restaurants,Greggs Plc,Supplies and Services related expenditure,03/10/2019,1.75,Director of Children's Services and Education
Entertainment,Member Clubs/Sport/Rec/Golf,Horizon Leisure Trust,Agency and Third Party Payments related expenditure,03/10/2019,2.75,Director of Children's Services and Education
Entertainment,Member Clubs/Sport/Rec/Golf,Horizon Leisure Trust,Agency and Third Party Payments related expenditure,03/10/2019,2.75,Director of Children's Services and Education
Retail,Grocery Stores/Supermarkets,Tesco Stores 4579,Premises related expenditure,03/10/2019,30,Director of Children's Services and Education
Retail,Grocery Stores/Supermarkets,Tesco Stores 4579,Supplies and Services related expenditure,03/10/2019,6.46,Director of Children's Services and Education
Retail,Grocery Stores/Supermarkets,Tesco Stores 4579,Supplies and Services related expenditure,03/10/2019,2.66,Director of Children's Services and Education
Retail,Grocery Stores/Supermarkets,Tesco Stores 4579,Supplies and Services related expenditure,03/10/2019,29.55,Director of Children's Services and Education
Facilities/Repair Supplies,Lumber/Build. Supply Stores,Elliott Brothers Ltd,Premises related expenditure,03/10/2019,15.31,"Director of Culture, Leisure & Regulatory Services"
Facilities/Repair Supplies,Hardware Stores,Toolstation Ltd,Premises related expenditure,03/10/2019,-20.82,"Director of Culture, Leisure & Regulatory Services"
Business Expenses/Services,Stationery Stores,Labelzone,Supplies and Services related expenditure,03/10/2019,10.79,Director of Children's Services and Education
Government,Govt Serv - Default,Hampshire County Counc,Supplies and Services related expenditure,03/10/2019,17.3,Director of Children's Services and Education
Business To Business Eqpt/Furn,Computer Software Stores,Www.Etailtech.Co.Uk,Supplies and Services related expenditure,03/10/2019,107.74,Director of Children's Services and Education
Automobile Services & Supplies,Service Stations,Asda Petrol 4583,Premises related expenditure,03/10/2019,50.01,"Director of Housing, Neighbourhood and Building Services"
Business Expenses/Services,Stationery Stores,Safe.Co.Uk,Supplies and Services related expenditure,03/10/2019,24.93,"Director of Housing, Neighbourhood and Building Services"
Business To Business Other Sup,Non-Durable Goods - Default,Eden Springs,Supplies and Services related expenditure,03/10/2019,35.4,"Director of Housing, Neighbourhood and Building Services"
Business Services,Business Services - Default,Www.Vegware.Co.Uk,Supplies and Services related expenditure,03/10/2019,65.61,"Director of Housing, Neighbourhood and Building Services"
Other Supplies,Gift/Card/Novelty And Souvenir Stores,Card Factory,Supplies and Services related expenditure,03/10/2019,0.83,Director of Adult Services
Miscellaneous,Other Direct Marketers,Amazon.Co.Uk,Premises related expenditure,03/10/2019,115.83,Director of Children's Services and Education
Business To Business Eqpt/Furn,Stationery/Office Supplies,Www.Banneruk.Com,Supplies and Services related expenditure,03/10/2019,5.36,"Director of Housing, Neighbourhood and Building Services"
Business To Business Eqpt/Furn,Stationery/Office Supplies,Www.Banneruk.Com,Supplies and Services related expenditure,03/10/2019,8.26,"Director of Housing, Neighbourhood and Building Services"
Entertainment,Theatrical Producers,Ih Communications Conf,Employees related expenditure,03/10/2019,698,"Director of Housing, Neighbourhood and Building Services"
Equipment And Furniture,Household Appliance Stores,Wilko Retail Limit,Supplies and Services related expenditure,03/10/2019,10.5,Director of Children's Services and Education
Other Supplies,Misc Speciality Retail,Amznmktplace,Supplies and Services related expenditure,03/10/2019,81.65,Director of Corporate Services
Other Supplies,Misc Speciality Retail,Amznmktplace,Supplies and Services related expenditure,03/10/2019,124.92,Director of Regeneration
Retail,Grocery Stores/Supermarkets,Tesco Stores 4579,Supplies and Services related expenditure,03/10/2019,0.42,Director of Children's Services and Education
Retail,Grocery Stores/Supermarkets,Tesco Stores 4579,Supplies and Services related expenditure,03/10/2019,2.5,Director of Children's Services and Education
Other Supplies,Gift/Card/Novelty And Souvenir Stores,Victory Trophies,Supplies and Services related expenditure,03/10/2019,5.42,"Director of Culture, Leisure & Regulatory Services"
Business To Business Eqpt/Furn,Stationery/Office Supplies,Www.Banneruk.Com,Supplies and Services related expenditure,03/10/2019,2.89,"Director of Housing, Neighbourhood and Building Services"
Business To Business Eqpt/Furn,Stationery/Office Supplies,Www.Banneruk.Com,Supplies and Services related expenditure,03/10/2019,19.73,"Director of Housing, Neighbourhood and Building Services"
Business To Business Eqpt/Furn,Stationery/Office Supplies,Www.Banneruk.Com,Supplies and Services related expenditure,03/10/2019,53.96,"Director of Housing, Neighbourhood and Building Services"
Transportation,Passenger Railways,Swrailway Tck Off,Transport related expenditure,03/10/2019,153,Director of Regeneration
Transportation,Passenger Railways,Swrailway Tck Off,Transport related expenditure,03/10/2019,53,Director of Regeneration
Miscellaneous,Other Direct Marketers,Findel Education,Supplies and Services related expenditure,03/10/2019,-5.49,Director of Children's Services and Education
Medical,Lab/Med/Hospital Equipment,Wightman & Parrish,Premises related expenditure,03/10/2019,55.27,Director of Adult Services
Business To Business Other Sup,Uniforms & Commercial Clothing,Arco Ltd,Supplies and Services related expenditure,01/10/2019,56.24,"Director of Housing, Neighbourhood and Building Services"
Retail,Sporting Goods Stores,Baltic Safety Prod,Supplies and Services related expenditure,02/10/2019,98.95,Director of Portsmouth International Port
Business To Business Facility/,Hardware Equipment/Supplies,Accurate Tool Repair &,Supplies and Services related expenditure,02/10/2019,72,"Director of Housing, Neighbourhood and Building Services"
Retail,Sporting Goods Stores,Decathlon UK Vad,Supplies and Services related expenditure,02/10/2019,3.33,Director of Children's Services and Education
Retail,Sporting Goods Stores,Decathlon UK Vad,Supplies and Services related expenditure,02/10/2019,104.65,Director of Children's Services and Education
Business To Business Facility/,Electrical Parts/Equipment,Rs Components,Supplies and Services related expenditure,02/10/2019,472.08,Director of Regeneration
Business To Business Facility/,Industrial Supplies - Def,Www.Arco.Co.Uk,Supplies and Services related expenditure,02/10/2019,156.93,"Director of Housing, Neighbourhood and Building Services"
Hotels And Motels,Premier Travel Inns,Premier Inn 44536680,Supplies and Services related expenditure,03/10/2019,30.83,"Director of Culture, Leisure & Regulatory Services"
Hotels And Motels,Premier Travel Inns,Premier Inn44025605,Agency and Third Party Payments related expenditure,03/10/2019,465.42,"Director of Housing, Neighbourhood and Building Services"
Business To Business Facility/,Industrial Supplies - Def,Www.Arco.Co.Uk,Supplies and Services related expenditure,03/10/2019,54.96,Director of Regeneration
Business To Business Facility/,Electrical Parts/Equipment,Farnell,Premises related expenditure,03/10/2019,30.27,Director of Portsmouth International Port
Other Supplies,Misc Speciality Retail,Amazon.Co.Uk,Supplies and Services related expenditure,03/10/2019,20.78,Director of Children's Services and Education
Business To Business Facility/,Electrical Parts/Equipment,Rs Components,Supplies and Services related expenditure,03/10/2019,22.94,"Director of Housing, Neighbourhood and Building Services"
Retail,Grocery Stores/Supermarkets,Asda George Com Leeds,Supplies and Services related expenditure,03/10/2019,-7.5,Director of Children's Services and Education
Eating And Drinking Places,Bars/Taverns/Lounges/Discos,Golden Hind,Supplies and Services related expenditure,03/10/2019,27.8,"Director of Culture, Leisure & Regulatory Services"
Automobile Services & Supplies,Service Stations,Mrh Cosham Service Statio,Transport related expenditure,03/10/2019,10.58,"Director of Culture, Leisure & Regulatory Services"
Business To Business Facility/,Electrical Parts/Equipment,Rs Components,Supplies and Services related expenditure,03/10/2019,508.2,Director of Regeneration
Airlines,Airlines And Air Carriers,Flybe.Com Tm42ax,Transport related expenditure,03/10/2019,617.14,Director of Children's Services and Education
Other Supplies,Misc Speciality Retail,Amznmktplace Amazon.Co.Uk,Supplies and Services related expenditure,03/10/2019,-3.4,Director of Children's Services and Education
Other Supplies,Misc Speciality Retail,Amznmktplace Amazon.Co.Uk,Supplies and Services related expenditure,03/10/2019,41.96,Director of Children's Services and Education
Other Supplies,Misc Speciality Retail,Amznmktplace,Supplies and Services related expenditure,04/10/2019,141.42,"Director of Housing, Neighbourhood and Building Services"
Business To Business Eqpt/Furn,Stationery/Office Supplies,Www.Banneruk.Com,Supplies and Services related expenditure,04/10/2019,292.3,"Director of Housing, Neighbourhood and Building Services"
Business To Business Eqpt/Furn,Stationery/Office Supplies,Www.Banneruk.Com,Supplies and Services related expenditure,04/10/2019,43.22,Director of Portsmouth International Port
Business To Business Eqpt/Furn,Stationery/Office Supplies,Www.Banneruk.Com,Supplies and Services related expenditure,04/10/2019,137.6,Director of Portsmouth International Port
Retail,Grocery Stores/Supermarkets,Asda Groceries Online,Supplies and Services related expenditure,04/10/2019,-9,Director of Children's Services and Education
Retail,Grocery Stores/Supermarkets,Asda Groceries Online,Supplies and Services related expenditure,04/10/2019,73.29,Director of Children's Services and Education
Facilities/Repair Supplies,Lumber/Build. Supply Stores,Covers Portsmouth 10,Supplies and Services related expenditure,04/10/2019,165.55,Director of Children's Services and Education
Retail,Grocery Stores/Supermarkets,Tesco Stores 4579,Supplies and Services related expenditure,04/10/2019,-20.83,Director of Adult Services
Retail,Grocery Stores/Supermarkets,Tesco Stores,Supplies and Services related expenditure,04/10/2019,2.5,Director of Children's Services and Education
Professional Services,Professional Services - Def,Trfsa *thomsonreuters,Supplies and Services related expenditure,04/10/2019,121.5,Director of Corporate Services
Professional Services,Professional Services - Def,Trfsa *thomsonreuters,Supplies and Services related expenditure,04/10/2019,121.5,Director of Corporate Services
Hotels And Motels,Premier Travel Inns,Premier Inn 44536370,Agency and Third Party Payments related expenditure,04/10/2019,575.83,"Director of Housing, Neighbourhood and Building Services"
Hotels And Motels,Travelodge,Travelodge Gb0000,Agency and Third Party Payments related expenditure,04/10/2019,147,"Director of Housing, Neighbourhood and Building Services"
Hotels And Motels,Travelodge,Travelodge Gb0000,Agency and Third Party Payments related expenditure,04/10/2019,2187.14,"Director of Housing, Neighbourhood and Building Services"
Other Supplies,Misc Speciality Retail,Amznmktplace,Supplies and Services related expenditure,04/10/2019,7.99,Director of Portsmouth International Port
Hotels And Motels,Lodging/Hotels/Motels/Resorts,Mercure,Supplies and Services related expenditure,04/10/2019,186.22,Director of Portsmouth International Port
Transportation,Passenger Railways,Eurostar Internet,Supplies and Services related expenditure,04/10/2019,268.4,Director of Portsmouth International Port
Government,Govt Serv - Default,Hm Passport Office,Supplies and Services related expenditure,04/10/2019,85,Director of Children's Services and Education
Medical,Lab/Med/Hospital Equipment,Wightman & Parrish Ltd,Premises related expenditure,04/10/2019,96.08,"Director of Housing, Neighbourhood and Building Services"
Business Expenses/Services,News Dealers/Newsstands,Wh Smith,Supplies and Services related expenditure,04/10/2019,78.73,Director of Regeneration
Government,Govt Serv - Default,Hampshire County Counc,Supplies and Services related expenditure,04/10/2019,21.58,Director of Children's Services and Education
Government,Govt Serv - Default,Hampshire County Counc,Supplies and Services related expenditure,04/10/2019,65.19,Director of Children's Services and Education
Government,Govt Serv - Default,Hampshire County Counc,Supplies and Services related expenditure,04/10/2019,68.55,Director of Children's Services and Education
Government,Govt Serv - Default,Hampshire County Counc,Supplies and Services related expenditure,04/10/2019,96.76,Director of Children's Services and Education
Government,Govt Serv - Default,Hampshire County Counc,Employees related expenditure,04/10/2019,325,Director of Children's Services and Education
Retail,Grocery Stores/Supermarkets,Www.Iceland.Co.Uk,Supplies and Services related expenditure,04/10/2019,138.5,Director of Adult Services
Retail,Grocery Stores/Supermarkets,Www.Iceland.Co.Uk,Supplies and Services related expenditure,04/10/2019,84.79,Director of Adult Services
Facilities/Repair Supplies,Automotive Parts Stores,National Windscreens,Transport related expenditure,04/10/2019,113.4,"Director of Culture, Leisure & Regulatory Services"
Other Supplies,Misc Speciality Retail,Rigby Taylor Limited,Supplies and Services related expenditure,04/10/2019,167.83,"Director of Culture, Leisure & Regulatory Services"
Facilities/Repair Supplies,Lawn/Garden Supply/Nursery,Tudor Environmental,Supplies and Services related expenditure,04/10/2019,216.75,"Director of Culture, Leisure & Regulatory Services"
Facilities/Repair Supplies,Lawn/Garden Supply/Nursery,M & S Enterprises,Supplies and Services related expenditure,04/10/2019,27.67,"Director of Housing, Neighbourhood and Building Services"
Transportation,"Parking Lots, Meters, Garages",3c_*portsmouth City Co,Transport related expenditure,04/10/2019,2.92,Director of Children's Services and Education
Retail,Grocery Stores/Supermarkets,Tesco Stores 4579,Supplies and Services related expenditure,04/10/2019,7.83,Director of Children's Services and Education
Retail,Grocery Stores/Supermarkets,Tesco Stores 4579,Supplies and Services related expenditure,04/10/2019,73.2,Director of Children's Services and Education
Facilities/Repair Supplies,Home Supply Warehouse Stores,B & Q 1260,Premises related expenditure,04/10/2019,54.21,Director of Children's Services and Education
Entertainment,Public Golf Courses,Chichester Golf,Supplies and Services related expenditure,04/10/2019,4.17,Director of Children's Services and Education
Entertainment,Public Golf Courses,Chichester Golf,Supplies and Services related expenditure,04/10/2019,10.83,Director of Children's Services and Education
Business To Business Facility/,Industrial Supplies - Def,Arco Ltd,Supplies and Services related expenditure,04/10/2019,121.04,"Director of Housing, Neighbourhood and Building Services"
Transportation,Passenger Railways,Nmbs Gent Tvm,Transport related expenditure,04/10/2019,12.7,Director of Children's Services and Education
Other Supplies,Department Stores,Southern Co-Op 0024,Supplies and Services related expenditure,04/10/2019,2.58,"Director of Culture, Leisure & Regulatory Services"
Eating And Drinking Places,Eating Places/Restaurants,Kudos Hospitality Ltd,Supplies and Services related expenditure,04/10/2019,4.5,"Director of Culture, Leisure & Regulatory Services"
Government,Govt Serv - Default,Prescription Chg,Supplies and Services related expenditure,04/10/2019,153,Director of Adult Services
Retail,Grocery Stores/Supermarkets,Wm Morrisons Store,Supplies and Services related expenditure,04/10/2019,4.17,Director of Children's Services and Education
Retail,Grocery Stores/Supermarkets,Wm Morrisons Store,Supplies and Services related expenditure,04/10/2019,2,Director of Children's Services and Education
Hotels And Motels,Travelodge,Travelodge Gb0000,Agency and Third Party Payments related expenditure,04/10/2019,105,"Director of Housing, Neighbourhood and Building Services"
Hotels And Motels,Travelodge,Travelodge Gb0000,Agency and Third Party Payments related expenditure,04/10/2019,906.58,"Director of Housing, Neighbourhood and Building Services"
Government,Govt Serv - Default,Portsmouth City Counci,Supplies and Services related expenditure,04/10/2019,2.5,Director of Regeneration
Business To Business Services,Misc Publishing & Printing,Www.Solopress.Com,Supplies and Services related expenditure,04/10/2019,14.8,Chief Exec
Retail,Grocery Stores/Supermarkets,Southern Co-Op 0006,Transport related expenditure,04/10/2019,20,Director of Children's Services and Education
Transportation,Passenger Railways,Swrailway Tck Off,Transport related expenditure,04/10/2019,109.9,Director of Children's Services and Education
Business To Business Eqpt/Furn,Stationery/Office Supplies,Www.Banneruk.Com,Supplies and Services related expenditure,04/10/2019,29.42,"Director of Culture, Leisure & Regulatory Services"
Professional Services,Accountants/Auditors/Bookpr,Www.Aat-Org.Uk,Transport related expenditure,04/10/2019,147,Director of Finance & Resources
Business To Business Other Sup,Uniforms & Commercial Clothing,Arco Ltd,Supplies and Services related expenditure,04/10/2019,-43.36,"Director of Housing, Neighbourhood and Building Services"
Retail,Grocery Stores/Supermarkets,Tesco Store 3055,Supplies and Services related expenditure,04/10/2019,31.29,"Director of Housing, Neighbourhood and Building Services"
Transportation,"Parking Lots, Meters, Garages",Pay N Display,Transport related expenditure,04/10/2019,2.3,Director of Children's Services and Education
Facilities/Repair Supplies,Hardware Stores,Home Bargains,Supplies and Services related expenditure,04/10/2019,29.16,Director of Children's Services and Education
Equipment And Furniture,Equip/Furn Rent/Lease Serv,Beaver Tool Hire Chichest,Supplies and Services related expenditure,04/10/2019,99.23,"Director of Housing, Neighbourhood and Building Services"
Medical,Lab/Med/Hospital Equipment,Wightman & Parrish,Premises related expenditure,04/10/2019,816.94,"Director of Housing, Neighbourhood and Building Services"
Business To Business Facility/,Hardware Equipment/Supplies,Pompey Hardware,Supplies and Services related expenditure,04/10/2019,6.5,Director of Children's Services and Education
Retail,Grocery Stores/Supermarkets,Tesco Store 3055,Supplies and Services related expenditure,04/10/2019,6,Director of Children's Services and Education
Entertainment,Amusement/Rec Serv - Def,Playzone Portsmouth,Supplies and Services related expenditure,04/10/2019,9.92,Director of Children's Services and Education
Business To Business Eqpt/Furn,Stationery/Office Supplies,Www.Banneruk.Com,Supplies and Services related expenditure,04/10/2019,41.3,Director of Public Health
Facilities/Repair Supplies,Home Supply Warehouse Stores,B & Q 1260,Supplies and Services related expenditure,04/10/2019,38.63,"Director of Housing, Neighbourhood and Building Services"
Facilities/Repair Supplies,Glass/Paint/Wallpaper Store,Johnstones Dec Centre,Supplies and Services related expenditure,04/10/2019,62.77,"Director of Housing, Neighbourhood and Building Services"
Business Expenses/Services,Postage Stamps,Post Office Counter,Supplies and Services related expenditure,04/10/2019,21.9,Director of Children's Services and Education
Business Expenses/Services,Postage Stamps,Post Office Counter,Supplies and Services related expenditure,04/10/2019,4.55,Director of Children's Services and Education
Miscellaneous,Charitable/Soc Service Orgs,The Salvation Army,Capital related expenditure,04/10/2019,180,Capital - Housing RA
Retail,Grocery Stores/Supermarkets,Www.Iceland.Co.Uk,Supplies and Services related expenditure,04/10/2019,74.13,Director of Adult Services
Business To Business Eqpt/Furn,Stationery/Office Supplies,Www.Banneruk.Com,Supplies and Services related expenditure,04/10/2019,2.25,"Director of Culture, Leisure & Regulatory Services"
Business To Business Eqpt/Furn,Stationery/Office Supplies,Www.Banneruk.Com,Supplies and Services related expenditure,04/10/2019,8.03,"Director of Culture, Leisure & Regulatory Services"
Business To Business Eqpt/Furn,Commercial Furniture,Portsdown Office Ltd,Supplies and Services related expenditure,04/10/2019,345,Director of Adult Services
Retail,Grocery Stores/Supermarkets,Tesco Stores 4579,Supplies and Services related expenditure,04/10/2019,14.68,Director of Adult Services
Other Supplies,Department Stores,Southern Co-Op 0018,Supplies and Services related expenditure,04/10/2019,2.67,Director of Children's Services and Education
Eating And Drinking Places,Fast Food Restaurants,Micks Mobile Catering,Supplies and Services related expenditure,04/10/2019,9.42,Director of Children's Services and Education
Eating And Drinking Places,Fast Food Restaurants,Micks Mobile Catering,Supplies and Services related expenditure,04/10/2019,1.4,Director of Children's Services and Education
Facilities/Repair Supplies,Home Supply Warehouse Stores,B & Q 1260,Supplies and Services related expenditure,04/10/2019,21.67,"Director of Housing, Neighbourhood and Building Services"
Equipment And Furniture,Household Appliance Stores,Machine Mart Ltd,Supplies and Services related expenditure,04/10/2019,211.28,"Director of Housing, Neighbourhood and Building Services"
Retail,Artist/Craft Shops,The Stash,Supplies and Services related expenditure,04/10/2019,1.83,Director of Children's Services and Education
Eating And Drinking Places,Eating Places/Restaurants,Gracie Anns Tea Room,Supplies and Services related expenditure,04/10/2019,10.33,Director of Children's Services and Education
Eating And Drinking Places,Fast Food Restaurants,Costa Coffee 43040380,Supplies and Services related expenditure,04/10/2019,3.75,Director of Children's Services and Education
Entertainment,Member Clubs/Sport/Rec/Golf,Amf Bowling,Supplies and Services related expenditure,04/10/2019,7.88,Director of Children's Services and Education
Government,Govt Serv - Default,Portsmouth Council,Agency and Third Party Payments related expenditure,04/10/2019,11,"Director of Culture, Leisure & Regulatory Services"
Facilities/Repair Supplies,Lumber/Build. Supply Stores,Www.Kenfield.Com,Premises related expenditure,04/10/2019,148.18,Director of Children's Services and Education
Transportation,Passenger Railways,Swrailwayselfserve,Transport related expenditure,04/10/2019,10.9,Director of Children's Services and Education
Retail,Grocery Stores/Supermarkets,Tesco Store 3048,Supplies and Services related expenditure,04/10/2019,50,Director of Children's Services and Education
Business Expenses/Services,News Dealers/Newsstands,Brunels News,Transport related expenditure,04/10/2019,56,Director of Children's Services and Education
Retail,Grocery Stores/Supermarkets,Tesco Store 3048,Supplies and Services related expenditure,04/10/2019,40,Director of Children's Services and Education
Retail,Grocery Stores/Supermarkets,Tesco Store 3048,Supplies and Services related expenditure,04/10/2019,20,Director of Children's Services and Education
Utilities,Utilities/Elec/Gas/H2O/Sani,Slicker Recycling,Premises related expenditure,04/10/2019,185,Director of Portsmouth International Port
Government,Govt Serv - Default,Mmo,Premises related expenditure,04/10/2019,244,Director of Portsmouth International Port
Government,Govt Serv - Default,Mmo,Premises related expenditure,04/10/2019,2287.5,Director of Portsmouth International Port
Miscellaneous,Continuity/Subscription Mercht,Mailchimp,Supplies and Services related expenditure,04/10/2019,49.28,"Director of Culture, Leisure & Regulatory Services"
Transportation,"Parking Lots, Meters, Garages",Portsmouth City Co,Transport related expenditure,04/10/2019,10.25,Chief Exec
Transportation,Passenger Railways,Lul Ticket Machine,Transport related expenditure,04/10/2019,4.9,Director of Children's Services and Education
Transportation,Passenger Railways,Nmbs Gent Tvm,Transport related expenditure,04/10/2019,8.28,Director of Children's Services and Education
Caterers Food,Caterers,Pam Bruxelles-Midi Ur,Supplies and Services related expenditure,04/10/2019,9.71,Director of Children's Services and Education
Other Supplies,Misc Speciality Retail,Amznmktplace,Supplies and Services related expenditure,04/10/2019,5.14,Director of Adult Services
Miscellaneous,Continuity/Subscription Mercht,Amazon Prime,Agency and Third Party Payments related expenditure,04/10/2019,7.99,Director of Children's Services and Education
Entertainment,Member Clubs/Sport/Rec/Golf,Horizon Leisure Trust,Supplies and Services related expenditure,04/10/2019,3.3,Director of Children's Services and Education
Caterers Food,Caterers,Bookerecomm,Supplies and Services related expenditure,04/10/2019,21.06,"Director of Housing, Neighbourhood and Building Services"
Caterers Food,Caterers,Bookerecomm,Supplies and Services related expenditure,04/10/2019,171.88,"Director of Housing, Neighbourhood and Building Services"
Equipment And Furniture,Household Appliance Stores,Wilko Retail Limit,Supplies and Services related expenditure,04/10/2019,59.6,Director of Children's Services and Education
Other Supplies,Misc Speciality Retail,Mr Pine,Supplies and Services related expenditure,04/10/2019,120,Director of Children's Services and Education
Retail,Grocery Stores/Supermarkets,Lidl Gb Portchester,Supplies and Services related expenditure,04/10/2019,3.89,Director of Adult Services
Retail,Grocery Stores/Supermarkets,Tesco Store 3048,Supplies and Services related expenditure,04/10/2019,50,Director of Children's Services and Education
Retail,Grocery Stores/Supermarkets,Tesco Store 3048,Supplies and Services related expenditure,04/10/2019,40,Director of Children's Services and Education
Facilities/Repair Supplies,Home Supply Warehouse Stores,B & Q 1260,Capital related expenditure,04/10/2019,117.14,Director of Regeneration
Government,Govt Serv - Default,Hampshire County Counc,Supplies and Services related expenditure,04/10/2019,58.19,"Director of Culture, Leisure & Regulatory Services"
Professional Services,Computer Program/Sys Design,Primarysite Limited,Supplies and Services related expenditure,04/10/2019,95,Director of Children's Services and Education
Business To Business Eqpt/Furn,Stationery/Office Supplies,Www.Banneruk.Com,Supplies and Services related expenditure,04/10/2019,1.18,Director of Regeneration
Business To Business Eqpt/Furn,Stationery/Office Supplies,Www.Banneruk.Com,Supplies and Services related expenditure,04/10/2019,24.66,Director of Regeneration
Business To Business Eqpt/Furn,Stationery/Office Supplies,Www.Banneruk.Com,Supplies and Services related expenditure,04/10/2019,1.89,"Director of Housing, Neighbourhood and Building Services"
Business To Business Eqpt/Furn,Stationery/Office Supplies,Www.Banneruk.Com,Supplies and Services related expenditure,04/10/2019,64.7,"Director of Housing, Neighbourhood and Building Services"
Retail,Grocery Stores/Supermarkets,Wm Morrisons Store,Supplies and Services related expenditure,04/10/2019,27.38,Director of Children's Services and Education
Retail,Grocery Stores/Supermarkets,Wm Morrisons Store,Premises related expenditure,04/10/2019,6.67,Director of Children's Services and Education
Retail,Grocery Stores/Supermarkets,Wm Morrisons Store,Supplies and Services related expenditure,04/10/2019,62.83,Director of Children's Services and Education
Medical,Lab/Med/Hospital Equipment,Complete Care Shop,Supplies and Services related expenditure,04/10/2019,126.8,Director of Adult Services
Transportation,Passenger Railways,New Southern Railw,Transport related expenditure,04/10/2019,33.6,Director of Children's Services and Education
Transportation,Passenger Railways,Swrailwayselfserve,Transport related expenditure,04/10/2019,39,Director of Children's Services and Education
Transportation,Passenger Railways,New Southern Railw,Transport related expenditure,04/10/2019,61,Director of Children's Services and Education
Retail,Grocery Stores/Supermarkets,Asda Groceries Online,Supplies and Services related expenditure,04/10/2019,5,Director of Children's Services and Education
Transportation,Passenger Railways,Swrailway Tck Off,Transport related expenditure,04/10/2019,85.4,Director of Adult Services
Government,Govt Serv - Default,Nhs Sbs,Agency and Third Party Payments related expenditure,04/10/2019,128,Director of Public Health
Government,Govt Serv - Default,Nhs Sbs,Agency and Third Party Payments related expenditure,04/10/2019,140.21,Director of Public Health
Medical,Hospitals,Royal Bournemouth Hosp,Agency and Third Party Payments related expenditure,04/10/2019,407,Director of Public Health
Other Supplies,Discount Stores,Argos Ltd,Supplies and Services related expenditure,04/10/2019,58.33,"Director of Housing, Neighbourhood and Building Services"
Transportation,"Parking Lots, Meters, Garages",3c_*portsmouth City Co,Supplies and Services related expenditure,04/10/2019,1.8,Director of Children's Services and Education
Business To Business Facility/,Industrial Supplies - Def,Www.Arco.Co.Uk,Supplies and Services related expenditure,04/10/2019,61.79,"Director of Housing, Neighbourhood and Building Services"
Other Supplies,Misc Speciality Retail,C J S Portsmouth Ltd,Supplies and Services related expenditure,04/10/2019,100.2,"Director of Housing, Neighbourhood and Building Services"
Medical,Lab/Med/Hospital Equipment,Wightman & Parrish Ltd,Premises related expenditure,04/10/2019,380.1,"Director of Housing, Neighbourhood and Building Services"
Auto/Vehicle Expenses,Auto Service Shops/Non Dealer,Boarhunt Group-Vt,Transport related expenditure,04/10/2019,374.44,"Director of Housing, Neighbourhood and Building Services"
Business To Business Eqpt/Furn,Stationery/Office Supplies,Www.Banneruk.Com,Supplies and Services related expenditure,04/10/2019,1.99,Director of Finance & Resources
Medical,Lab/Med/Hospital Equipment,Www.Wmsplc.Co.Uk,Supplies and Services related expenditure,04/10/2019,144.65,Director of Public Health
Retail,Grocery Stores/Supermarkets,Tesco Store 3055,Supplies and Services related expenditure,04/10/2019,62.81,Director of Children's Services and Education
Transportation,Passenger Railways,Trainline,Supplies and Services related expenditure,04/10/2019,68.75,Director of Children's Services and Education
Miscellaneous,Charitable/Soc Service Orgs,The Salvation Army,Capital related expenditure,04/10/2019,205,Capital - Housing RA
Hotels And Motels,Travelodge,Travelodge Gb0000,Agency and Third Party Payments related expenditure,04/10/2019,52.5,"Director of Housing, Neighbourhood and Building Services"
Hotels And Motels,Travelodge,Travelodge Gb0000,Agency and Third Party Payments related expenditure,04/10/2019,801.88,"Director of Housing, Neighbourhood and Building Services"
Automobile Services & Supplies,Service Stations,Mrh Cosham Service Statio,Transport related expenditure,04/10/2019,10.58,"Director of Culture, Leisure & Regulatory Services"
Eating And Drinking Places,Fast Food Restaurants,Costa Coffee 43040140,Supplies and Services related expenditure,04/10/2019,4.17,Director of Regeneration
Government,Govt Serv - Default,Sdlt,Supplies and Services related expenditure,04/10/2019,3699.7,Capital - Housing RA
Business To Business Eqpt/Furn,Stationery/Office Supplies,Www.Banneruk.Com,Supplies and Services related expenditure,04/10/2019,65.16,Solent LEP
Automobile Services & Supplies,Service Stations,Tesco Pfs 4274,Transport related expenditure,04/10/2019,81.67,"Director of Housing, Neighbourhood and Building Services"
Other Supplies,Gift/Card/Novelty And Souvenir Stores,Victory Trophies,Supplies and Services related expenditure,04/10/2019,36.29,Director of Children's Services and Education
Miscellaneous,Sport/Recreational Camps,The Base Skatepark Cic,Supplies and Services related expenditure,04/10/2019,5,Director of Children's Services and Education
Facilities/Repair Supplies,Glass/Paint/Wallpaper Store,Johnstones Dec Centre,Premises related expenditure,04/10/2019,180,"Director of Culture, Leisure & Regulatory Services"
Business Expenses/Services,Stationery Stores,Www.Tts-Groups.Co.Uk,Supplies and Services related expenditure,04/10/2019,136.78,Director of Children's Services and Education
Transportation,Steamship/Cruise Lines,Red Funnel Group,Transport related expenditure,04/10/2019,25.14,Solent LEP
Miscellaneous,Continuity/Subscription Mercht,Grants Online,Supplies and Services related expenditure,04/10/2019,20,"Director of Housing, Neighbourhood and Building Services"
Medical,Lab/Med/Hospital Equipment,Age Co Iadvisors,Premises related expenditure,04/10/2019,21.21,"Director of Housing, Neighbourhood and Building Services"
Entertainment,Amusement/Rec Serv - Def,Iz *iflip Limited,Agency and Third Party Payments related expenditure,04/10/2019,4.21,Director of Children's Services and Education
Entertainment,Amusement/Rec Serv - Def,Iz *iflip Limited,Agency and Third Party Payments related expenditure,04/10/2019,4.21,Director of Children's Services and Education
Miscellaneous,Sport/Recreational Camps,Flip Out Portsmouth,Agency and Third Party Payments related expenditure,04/10/2019,9.17,Director of Children's Services and Education
Miscellaneous,Sport/Recreational Camps,Flip Out Portsmouth,Agency and Third Party Payments related expenditure,04/10/2019,9.17,Director of Children's Services and Education
Eating And Drinking Places,Eating Places/Restaurants,Mother Kellys,Agency and Third Party Payments related expenditure,04/10/2019,14.63,Director of Children's Services and Education
Eating And Drinking Places,Eating Places/Restaurants,Mother Kellys,Agency and Third Party Payments related expenditure,04/10/2019,14.63,Director of Children's Services and Education
Retail,Grocery Stores/Supermarkets,Tesco Stores 4579,Supplies and Services related expenditure,04/10/2019,5.38,Director of Children's Services and Education
Retail,Grocery Stores/Supermarkets,Tesco Stores 4579,Supplies and Services related expenditure,04/10/2019,35.69,Director of Children's Services and Education
Other Supplies,Misc Speciality Retail,Amznmktplace,Premises related expenditure,04/10/2019,9.12,Director of Children's Services and Education
Retail,Grocery Stores/Supermarkets,Tesco Store 3055,Supplies and Services related expenditure,04/10/2019,2.5,Director of Children's Services and Education
Business To Business Eqpt/Furn,Stationery/Office Supplies,Www.Banneruk.Com,Supplies and Services related expenditure,04/10/2019,2.82,Director of Children's Services and Education
Business Expenses/Services,Postage Stamps,The Post Office,Supplies and Services related expenditure,04/10/2019,8.4,Director of Children's Services and Education
Retail,Grocery Stores/Supermarkets,Asda Groceries Online,Supplies and Services related expenditure,04/10/2019,44.49,Director of Children's Services and Education
Business To Business Eqpt/Furn,Computers/Peripherals/Software,Realvnc Limited,Supplies and Services related expenditure,04/10/2019,128.33,Director of Children's Services and Education
Business To Business Eqpt/Furn,Stationery/Office Supplies,Www.Banneruk.Com,Supplies and Services related expenditure,04/10/2019,27.57,"Director of Culture, Leisure & Regulatory Services"
Facilities/Repair Supplies,Home Supply Warehouse Stores,B & Q 1260,Premises related expenditure,04/10/2019,71.39,Director of Children's Services and Education
Eating And Drinking Places,Eating Places/Restaurants,Costa,Supplies and Services related expenditure,04/10/2019,6.43,Director of Children's Services and Education
Transportation,"Parking Lots, Meters, Garages",Portsmouth City Co,Supplies and Services related expenditure,04/10/2019,1.67,Director of Regeneration
Retail,Grocery Stores/Supermarkets,Asda Stores,Supplies and Services related expenditure,04/10/2019,101.28,Director of Children's Services and Education
Business To Business Facility/,Industrial Supplies - Def,Www.Arco.Co.Uk,Supplies and Services related expenditure,04/10/2019,4.56,Director of Regeneration
Miscellaneous,Other Direct Marketers,Solon Security Ltd,Supplies and Services related expenditure,04/10/2019,408.75,Director of Regeneration
Miscellaneous,Other Direct Marketers,Solon Security Ltd,Supplies and Services related expenditure,04/10/2019,408.75,Director of Regeneration
Miscellaneous,Other Direct Marketers,Findel Education,Supplies and Services related expenditure,04/10/2019,-2.99,Director of Children's Services and Education
Miscellaneous,Other Direct Marketers,Findel Education,Supplies and Services related expenditure,04/10/2019,-2.99,Director of Children's Services and Education
Government,Govt Serv - Default,Hampshire County Counc,Supplies and Services related expenditure,04/10/2019,36.24,Director of Children's Services and Education
Government,Colleges/Univ/Jc/Profession,Gls Educational Su,Supplies and Services related expenditure,04/10/2019,36.75,Director of Children's Services and Education
Business To Business Eqpt/Furn,Commercial Equipment - Default,Visionaid Technologies,Supplies and Services related expenditure,04/10/2019,30.68,Director of Adult Services
Other Supplies,Discount Stores,B&m Retail,Supplies and Services related expenditure,04/10/2019,6.67,Director of Children's Services and Education
Medical,Lab/Med/Hospital Equipment,Wightman & Parrish,Premises related expenditure,04/10/2019,49.45,"Director of Housing, Neighbourhood and Building Services"
Equipment And Furniture,Equip/Furn Rent/Lease Serv,5834 Havant,Supplies and Services related expenditure,04/10/2019,-300,"Director of Housing, Neighbourhood and Building Services"
Hotels And Motels,Lodging/Hotels/Motels/Resorts,The Liner Hotel,Employees related expenditure,04/10/2019,197.83,Director of Adult Services
Retail,Grocery Stores/Supermarkets,Asda Stores,Supplies and Services related expenditure,05/10/2019,11,Director of Children's Services and Education
Other Supplies,Misc Speciality Retail,Amazon.Co.Uk,Supplies and Services related expenditure,05/10/2019,11.62,Director of Children's Services and Education
Eating And Drinking Places,Fast Food Restaurants,McDonalds,Supplies and Services related expenditure,05/10/2019,4.54,Director of Children's Services and Education
Entertainment,Amusement/Rec Serv - Def,Iz *iflip Limited,Agency and Third Party Payments related expenditure,05/10/2019,2.43,Director of Children's Services and Education
Entertainment,Amusement/Rec Serv - Def,Iz *iflip Limited,Agency and Third Party Payments related expenditure,05/10/2019,2.43,Director of Children's Services and Education
Entertainment,Amusement/Rec Serv - Def,Iz *iflip Limited,Agency and Third Party Payments related expenditure,05/10/2019,2.43,Director of Children's Services and Education
Eating And Drinking Places,Eating Places/Restaurants,Zizzi Port Solent,Agency and Third Party Payments related expenditure,05/10/2019,24.42,Director of Children's Services and Education
Eating And Drinking Places,Eating Places/Restaurants,Flip Out Portsmouth,Agency and Third Party Payments related expenditure,05/10/2019,9.17,Director of Children's Services and Education
Eating And Drinking Places,Eating Places/Restaurants,Flip Out Portsmouth,Agency and Third Party Payments related expenditure,05/10/2019,9.17,Director of Children's Services and Education
Eating And Drinking Places,Eating Places/Restaurants,Flip Out Portsmouth,Agency and Third Party Payments related expenditure,05/10/2019,9.17,Director of Children's Services and Education
Other Supplies,Misc Speciality Retail,Amznmktplace,Premises related expenditure,05/10/2019,38.78,Director of Children's Services and Education
Other Supplies,Misc Speciality Retail,Amznmktplace,Supplies and Services related expenditure,05/10/2019,3.95,Director of Children's Services and Education
Other Supplies,Misc Speciality Retail,Amznmktplace,Supplies and Services related expenditure,05/10/2019,16.58,Director of Children's Services and Education
Retail,Sporting Goods Stores,J D Sports Fashion Plc,Agency and Third Party Payments related expenditure,05/10/2019,115.05,Director of Children's Services and Education
Retail,Grocery Stores/Supermarkets,Wm Morrisons Store,Supplies and Services related expenditure,05/10/2019,7.83,Director of Children's Services and Education
Retail,Grocery Stores/Supermarkets,Wm Morrisons Store,Supplies and Services related expenditure,05/10/2019,57.12,Director of Children's Services and Education
Eating And Drinking Places,Eating Places/Restaurants,Iz *lily And Lime Ld,Supplies and Services related expenditure,05/10/2019,22.08,"Director of Culture, Leisure & Regulatory Services"
Miscellaneous,Other Direct Marketers,Amazon.Co.Uk,Supplies and Services related expenditure,05/10/2019,19.95,Director of Children's Services and Education
Other Supplies,Misc Speciality Retail,Amznmktplace,Supplies and Services related expenditure,05/10/2019,-8.16,Director of Children's Services and Education
Other Supplies,Misc Speciality Retail,Amznmktplace,Supplies and Services related expenditure,05/10/2019,324.93,Director of Children's Services and Education
Other Supplies,Misc Speciality Retail,Amznmktplace,Supplies and Services related expenditure,05/10/2019,48.8,Director of Children's Services and Education
Retail,Artist/Craft Shops,Hobbycraft,Supplies and Services related expenditure,05/10/2019,5.33,"Director of Culture, Leisure & Regulatory Services"
Retail,Grocery Stores/Supermarkets,Asda Stores,Supplies and Services related expenditure,05/10/2019,5,Director of Children's Services and Education
Retail,Grocery Stores/Supermarkets,Asda Groceries Online,Supplies and Services related expenditure,06/10/2019,-2,Director of Children's Services and Education
Other Supplies,Misc Speciality Retail,Amznmktplace Amazon.Co.Uk,Supplies and Services related expenditure,06/10/2019,15.99,Director of Children's Services and Education
Other Supplies,Department Stores,Southern Co-Op 0247,Supplies and Services related expenditure,06/10/2019,6.6,Director of Adult Services
Other Supplies,Misc Speciality Retail,Amznmktplace Amazon.Co.Uk,Supplies and Services related expenditure,06/10/2019,21.23,Director of Children's Services and Education
Facilities/Repair Supplies,Home Supply Warehouse Stores,B & Q 1260,Premises related expenditure,06/10/2019,48.82,Director of Children's Services and Education
Retail,Sporting Goods Stores,Sportsdirect 363,Supplies and Services related expenditure,06/10/2019,5,Director of Adult Services
Other Supplies,Variety Stores,Poundstretcher 629,Supplies and Services related expenditure,06/10/2019,7.41,Director of Adult Services
Other Supplies,Department Stores,The Range,Supplies and Services related expenditure,06/10/2019,20.81,Director of Adult Services
Facilities/Repair Supplies,Hardware Stores,Home Bargains,Supplies and Services related expenditure,06/10/2019,3.71,"Director of Housing, Neighbourhood and Building Services"
Other Supplies,Misc Speciality Retail,Amznmktplace,Supplies and Services related expenditure,06/10/2019,10.4,Director of Adult Services
Other Supplies,Misc Speciality Retail,Amznmktplace Amazon.Co.Uk,Supplies and Services related expenditure,06/10/2019,8.97,Director of Children's Services and Education
Miscellaneous,Other Direct Marketers,Amazon.Co.Uk,Supplies and Services related expenditure,06/10/2019,8.33,Director of Corporate Services
Other Supplies,Misc Speciality Retail,Amznmktplace,Supplies and Services related expenditure,06/10/2019,6.66,"Director of Housing, Neighbourhood and Building Services"
Other Supplies,Misc Speciality Retail,Amznmktplace,Supplies and Services related expenditure,06/10/2019,24.92,"Director of Housing, Neighbourhood and Building Services"
Other Supplies,Misc Speciality Retail,Amznmktplace,Supplies and Services related expenditure,06/10/2019,15.24,"Director of Housing, Neighbourhood and Building Services"
Other Supplies,Misc Speciality Retail,Amznmktplace,Supplies and Services related expenditure,06/10/2019,24.58,"Director of Housing, Neighbourhood and Building Services"
Other Supplies,Misc Speciality Retail,Amznmktplace Amazon.Co.Uk,Supplies and Services related expenditure,06/10/2019,36.66,"Director of Housing, Neighbourhood and Building Services"
Other Supplies,Misc Speciality Retail,Amznmktplace Amazon.Co.Uk,Supplies and Services related expenditure,06/10/2019,18.31,"Director of Housing, Neighbourhood and Building Services"
Other Supplies,Misc Speciality Retail,Amznmktplace Amazon.Co.Uk,Supplies and Services related expenditure,06/10/2019,15.24,"Director of Housing, Neighbourhood and Building Services"
Other Supplies,Misc Speciality Retail,Amznmktplace,Supplies and Services related expenditure,06/10/2019,109.82,Director of Adult Services
Miscellaneous,Other Direct Marketers,Amazon.Co.Uk,Supplies and Services related expenditure,06/10/2019,11.2,"Director of Housing, Neighbourhood and Building Services"
Other Supplies,Misc Speciality Retail,Amazon.Co.Uk,Supplies and Services related expenditure,06/10/2019,23.32,Director of Children's Services and Education
Other Supplies,Misc Speciality Retail,Amznmktplace Amazon.Co.Uk,Supplies and Services related expenditure,06/10/2019,-3,Director of Children's Services and Education
Other Supplies,Misc Speciality Retail,Amznmktplace Amazon.Co.Uk,Supplies and Services related expenditure,06/10/2019,17.98,Director of Children's Services and Education
Other Supplies,Misc Speciality Retail,Amznmktplace Amazon.Co.Uk,Supplies and Services related expenditure,06/10/2019,2.5,Director of Children's Services and Education
Business Expenses/Services,News Dealers/Newsstands,Gunwharf News,Agency and Third Party Payments related expenditure,06/10/2019,4.58,Director of Children's Services and Education
Entertainment,Motion Picture Theatres,Vue Cinemas,Agency and Third Party Payments related expenditure,06/10/2019,7.48,Director of Children's Services and Education
Entertainment,Motion Picture Theatres,Vue Cinemas,Agency and Third Party Payments related expenditure,06/10/2019,11.65,Director of Children's Services and Education
Retail,Sports/Riding Apparel Store,Nike Store 00542,Supplies and Services related expenditure,06/10/2019,65,Director of Children's Services and Education
Other Supplies,Misc Speciality Retail,Amznmktplace Amazon.Co.Uk,Supplies and Services related expenditure,06/10/2019,-24.29,Director of Children's Services and Education
Other Supplies,Misc Speciality Retail,Amznmktplace,Supplies and Services related expenditure,06/10/2019,54.37,Director of Children's Services and Education
Other Supplies,Misc Speciality Retail,Amznmktplace,Supplies and Services related expenditure,06/10/2019,19.77,Director of Children's Services and Education
Other Supplies,Misc Speciality Retail,Amznmktplace Amazon.Co.Uk,Supplies and Services related expenditure,06/10/2019,139.29,Director of Children's Services and Education
Other Supplies,Misc Speciality Retail,Amznmktplace,Supplies and Services related expenditure,06/10/2019,17.49,Director of Children's Services and Education
Retail,Sports/Riding Apparel Store,Nike Store 00542,Supplies and Services related expenditure,06/10/2019,37.33,Director of Children's Services and Education
Eating And Drinking Places,Eating Places/Restaurants,Flip Out Portsmouth,Agency and Third Party Payments related expenditure,06/10/2019,12.5,Director of Children's Services and Education
Miscellaneous,Other Direct Marketers,Amazon.Co.Uk,Supplies and Services related expenditure,06/10/2019,7.48,Director of Children's Services and Education
Eating And Drinking Places,Fast Food Restaurants,McDonalds,Supplies and Services related expenditure,06/10/2019,2.25,Director of Children's Services and Education
Entertainment,Motion Picture Theatres,Odeon Upt,Agency and Third Party Payments related expenditure,06/10/2019,8.33,Director of Children's Services and Education
Retail,Grocery Stores/Supermarkets,Asda Stores,Supplies and Services related expenditure,06/10/2019,8.33,Director of Children's Services and Education
Retail,Grocery Stores/Supermarkets,Asda Stores,Supplies and Services related expenditure,06/10/2019,22.47,Director of Children's Services and Education
Business To Business Other Sup,Uniforms & Commercial Clothing,Arco Ltd,Supplies and Services related expenditure,01/10/2019,36.03,"Director of Housing, Neighbourhood and Building Services"
Business To Business Other Sup,Uniforms & Commercial Clothing,Arco Ltd,Supplies and Services related expenditure,01/10/2019,54.04,"Director of Housing, Neighbourhood and Building Services"
Business To Business Other Sup,Uniforms & Commercial Clothing,Arco Ltd,Supplies and Services related expenditure,02/10/2019,63.52,"Director of Housing, Neighbourhood and Building Services"
Retail,Sporting Goods Stores,Sportsdirect.Com,Supplies and Services related expenditure,06/10/2019,70.82,Director of Regeneration
Retail,Sports/Riding Apparel Store,Klarna *gaynors Co Uk,Supplies and Services related expenditure,06/10/2019,66.62,Director of Regeneration
Eating And Drinking Places,Fast Food Restaurants,Micks Mobile Catering,Supplies and Services related expenditure,06/10/2019,15,Director of Children's Services and Education
Business To Business Eqpt/Furn,Stationery/Office Supplies,Www.Banneruk.Com,Supplies and Services related expenditure,07/10/2019,68.52,Director of Children's Services and Education
Business To Business Eqpt/Furn,Stationery/Office Supplies,Www.Banneruk.Com,Supplies and Services related expenditure,07/10/2019,63.13,"Director of Housing, Neighbourhood and Building Services"
Business To Business Eqpt/Furn,Stationery/Office Supplies,Www.Banneruk.Com,Supplies and Services related expenditure,07/10/2019,82.16,"Director of Housing, Neighbourhood and Building Services"
Medical,Lab/Med/Hospital Equipment,Wightman & Parrish,Premises related expenditure,07/10/2019,210.55,"Director of Housing, Neighbourhood and Building Services"
Hotels And Motels,Travelodge,Travelodge Gb0000,Agency and Third Party Payments related expenditure,07/10/2019,441,"Director of Housing, Neighbourhood and Building Services"
Hotels And Motels,Travelodge,Travelodge Gb0000,Agency and Third Party Payments related expenditure,07/10/2019,1431.16,"Director of Housing, Neighbourhood and Building Services"
Hotels And Motels,Travelodge,Travelodge Gb0000,Agency and Third Party Payments related expenditure,07/10/2019,294,"Director of Housing, Neighbourhood and Building Services"
Hotels And Motels,Travelodge,Travelodge Gb0000,Agency and Third Party Payments related expenditure,07/10/2019,1946.48,"Director of Housing, Neighbourhood and Building Services"
Government,Vocational/Trade Schools,Www.Cskills.Org,Supplies and Services related expenditure,07/10/2019,60,Director of Regeneration
Eating And Drinking Places,Fast Food Restaurants,McDonalds,Supplies and Services related expenditure,07/10/2019,4.33,Director of Children's Services and Education
Business To Business Facility/,Industrial Supplies - Def,Www.Arco.Co.Uk,Supplies and Services related expenditure,07/10/2019,90.77,"Director of Housing, Neighbourhood and Building Services"
Medical,Lab/Med/Hospital Equipment,Wightman & Parrish Ltd,Premises related expenditure,07/10/2019,119.9,"Director of Housing, Neighbourhood and Building Services"
Transportation,Passenger Railways,Trainline,Transport related expenditure,07/10/2019,22.73,Director of Finance & Resources
Retail,Grocery Stores/Supermarkets,Tesco Store 3055,Supplies and Services related expenditure,07/10/2019,28.42,Director of Children's Services and Education
Retail,Grocery Stores/Supermarkets,Tesco Store 3055,Supplies and Services related expenditure,07/10/2019,0.83,Director of Children's Services and Education
Retail,Grocery Stores/Supermarkets,Tesco Store 3055,Supplies and Services related expenditure,07/10/2019,3.33,Director of Children's Services and Education
Retail,Grocery Stores/Supermarkets,Tesco Store 3055,Supplies and Services related expenditure,07/10/2019,15.99,Director of Children's Services and Education
Retail,Grocery Stores/Supermarkets,Tesco Store 3055,Supplies and Services related expenditure,07/10/2019,19.92,Director of Children's Services and Education
Retail,Grocery Stores/Supermarkets,Tesco Store 3055,Supplies and Services related expenditure,07/10/2019,1.17,Director of Children's Services and Education
Retail,Grocery Stores/Supermarkets,Tesco Store 3055,Supplies and Services related expenditure,07/10/2019,42.67,Director of Children's Services and Education
Retail,Grocery Stores/Supermarkets,Fruit Basket Ltd,Supplies and Services related expenditure,07/10/2019,121.2,"Director of Housing, Neighbourhood and Building Services"
Retail,Grocery Stores/Supermarkets,Tesco Stores 4611,Supplies and Services related expenditure,07/10/2019,3,Director of Children's Services and Education
Retail,Grocery Stores/Supermarkets,Tesco Stores 4611,Supplies and Services related expenditure,07/10/2019,3,Director of Children's Services and Education
Business To Business Facility/,Hardware Equipment/Supplies,Croma Locksmiths & Sec,Supplies and Services related expenditure,07/10/2019,127,"Director of Housing, Neighbourhood and Building Services"
Retail,Grocery Stores/Supermarkets,Asda Groceries Online,Supplies and Services related expenditure,07/10/2019,-1.11,Director of Children's Services and Education
Retail,Grocery Stores/Supermarkets,Asda Groceries Online,Supplies and Services related expenditure,07/10/2019,233.57,Director of Children's Services and Education
Retail,Grocery Stores/Supermarkets,Asda Groceries Online,Supplies and Services related expenditure,07/10/2019,27.81,Director of Children's Services and Education
Business To Business Eqpt/Furn,Stationery/Office Supplies,Www.Banneruk.Com,Supplies and Services related expenditure,07/10/2019,-4.4,Director of Regeneration
Other Supplies,Department Stores,Debenhams,Supplies and Services related expenditure,07/10/2019,16.67,"Director of Culture, Leisure & Regulatory Services"
Retail,Grocery Stores/Supermarkets,Fruit Basket Ltd,Supplies and Services related expenditure,07/10/2019,56.72,"Director of Culture, Leisure & Regulatory Services"
Utilities,Computer Network/Info Svcs,Siteground Hosting,Supplies and Services related expenditure,07/10/2019,11.95,Director of Corporate Services
Miscellaneous,Sport/Recreational Camps,Bc-Gos,Supplies and Services related expenditure,07/10/2019,6,Director of Children's Services and Education
Miscellaneous,Sport/Recreational Camps,Bc-Gos,Supplies and Services related expenditure,07/10/2019,10,Director of Children's Services and Education
Retail,Grocery Stores/Supermarkets,Tesco Stores 6679,Supplies and Services related expenditure,07/10/2019,1.1,Director of Children's Services and Education
Transportation,Passenger Railways,Swrailwayselfserve,Transport related expenditure,07/10/2019,10,Director of Corporate Services
Transportation,Passenger Railways,Swrailway Tck Off,Transport related expenditure,07/10/2019,76.4,Director of Corporate Services
Business Expenses/Services,Stationery Stores,Better Equipped,Supplies and Services related expenditure,07/10/2019,12.85,"Director of Culture, Leisure & Regulatory Services"
Business To Business Services,Misc Publishing & Printing,Note-Pads Ecommerc,Supplies and Services related expenditure,07/10/2019,34.68,"Director of Culture, Leisure & Regulatory Services"
Retail,Grocery Stores/Supermarkets,Asda Groceries Online,Supplies and Services related expenditure,07/10/2019,105.52,Director of Children's Services and Education
Retail,Grocery Stores/Supermarkets,Asda Superstore,Supplies and Services related expenditure,07/10/2019,6.97,"Director of Housing, Neighbourhood and Building Services"
Eating And Drinking Places,Fast Food Restaurants,Micks Mobile Catering,Supplies and Services related expenditure,07/10/2019,4.33,Director of Children's Services and Education
Business To Business Eqpt/Furn,Stationery/Office Supplies,Www.Banneruk.Com,Supplies and Services related expenditure,07/10/2019,12.86,Director of Adult Services
Freight/Courier/Warehouse Svcs,Public Warehousing,Big Yellow S S Portsmout,Premises related expenditure,07/10/2019,-28.15,"Director of Housing, Neighbourhood and Building Services"
Freight/Courier/Warehouse Svcs,Public Warehousing,Www.Safestore.Co.Uk,Premises related expenditure,07/10/2019,13.64,"Director of Housing, Neighbourhood and Building Services"
Freight/Courier/Warehouse Svcs,Public Warehousing,Www.Safestore.Co.Uk,Premises related expenditure,07/10/2019,126.45,"Director of Housing, Neighbourhood and Building Services"
Freight/Courier/Warehouse Svcs,Public Warehousing,Www.Safestore.Co.Uk,Premises related expenditure,07/10/2019,61.38,"Director of Housing, Neighbourhood and Building Services"
Freight/Courier/Warehouse Svcs,Public Warehousing,Www.Safestore.Co.Uk,Premises related expenditure,07/10/2019,216.3,"Director of Housing, Neighbourhood and Building Services"
Hotels And Motels,Lodging/Hotels/Motels/Resorts,Linden Guest House,Agency and Third Party Payments related expenditure,07/10/2019,645,"Director of Housing, Neighbourhood and Building Services"
Retail,Grocery Stores/Supermarkets,Asda Stores,Supplies and Services related expenditure,07/10/2019,5.42,"Director of Housing, Neighbourhood and Building Services"
Hotels And Motels,Travelodge,Travelodge Gb0000,Agency and Third Party Payments related expenditure,07/10/2019,52.5,"Director of Housing, Neighbourhood and Building Services"
Hotels And Motels,Travelodge,Travelodge Gb0000,Agency and Third Party Payments related expenditure,07/10/2019,524,"Director of Housing, Neighbourhood and Building Services"
Hotels And Motels,Travelodge,Travelodge Gb0000,Agency and Third Party Payments related expenditure,07/10/2019,84,"Director of Housing, Neighbourhood and Building Services"
Hotels And Motels,Travelodge,Travelodge Gb0000,Agency and Third Party Payments related expenditure,07/10/2019,516.89,"Director of Housing, Neighbourhood and Building Services"
Hotels And Motels,Travelodge,Travelodge Gb0000,Agency and Third Party Payments related expenditure,07/10/2019,57.75,"Director of Housing, Neighbourhood and Building Services"
Hotels And Motels,Travelodge,Travelodge Gb0000,Agency and Third Party Payments related expenditure,07/10/2019,559.62,"Director of Housing, Neighbourhood and Building Services"
Hotels And Motels,Travelodge,Travelodge Gb0000,Agency and Third Party Payments related expenditure,07/10/2019,78.75,"Director of Housing, Neighbourhood and Building Services"
Hotels And Motels,Travelodge,Travelodge Gb0000,Agency and Third Party Payments related expenditure,07/10/2019,815.29,"Director of Housing, Neighbourhood and Building Services"
Hotels And Motels,Travelodge,Travelodge Gb0000,Agency and Third Party Payments related expenditure,07/10/2019,99.75,"Director of Housing, Neighbourhood and Building Services"
Hotels And Motels,Travelodge,Travelodge Gb0000,Agency and Third Party Payments related expenditure,07/10/2019,974.38,"Director of Housing, Neighbourhood and Building Services"
Hotels And Motels,Travelodge,Travelodge Gb0000,Agency and Third Party Payments related expenditure,07/10/2019,136.5,"Director of Housing, Neighbourhood and Building Services"
Hotels And Motels,Travelodge,Travelodge Gb0000,Agency and Third Party Payments related expenditure,07/10/2019,1250.62,"Director of Housing, Neighbourhood and Building Services"
Hotels And Motels,Travelodge,Travelodge Gb0000,Agency and Third Party Payments related expenditure,07/10/2019,330.75,"Director of Housing, Neighbourhood and Building Services"
Hotels And Motels,Travelodge,Travelodge Gb0000,Agency and Third Party Payments related expenditure,07/10/2019,1234.03,"Director of Housing, Neighbourhood and Building Services"
Other Supplies,Variety Stores,Tk Maxx,Agency and Third Party Payments related expenditure,07/10/2019,15,Director of Children's Services and Education
Other Supplies,Variety Stores,Tk Maxx,Agency and Third Party Payments related expenditure,07/10/2019,25.09,Director of Children's Services and Education
Retail,Grocery Stores/Supermarkets,Asda Groceries Online,Supplies and Services related expenditure,07/10/2019,7.92,Director of Children's Services and Education
Retail,Grocery Stores/Supermarkets,Asda Groceries Online,Supplies and Services related expenditure,07/10/2019,87.46,Director of Children's Services and Education
Retail,Grocery Stores/Supermarkets,Sainsburys S/mkts,Supplies and Services related expenditure,07/10/2019,10.67,Director of Children's Services and Education
Retail,Grocery Stores/Supermarkets,Smart-Buy Retai Ltd-18,Supplies and Services related expenditure,07/10/2019,11.82,Director of Children's Services and Education
Hotels And Motels,Lodging/Hotels/Motels/Resorts,Portsmouth Inns,Supplies and Services related expenditure,07/10/2019,100,Director of Children's Services and Education
Hotels And Motels,Lodging/Hotels/Motels/Resorts,Portsmouth Inns,Supplies and Services related expenditure,07/10/2019,100,Director of Children's Services and Education
Transportation,Passenger Railways,Swrailway Tck Off,Transport related expenditure,07/10/2019,9.3,Director of Finance & Resources
Retail,Grocery Stores/Supermarkets,Wm Morrisons Store,Supplies and Services related expenditure,07/10/2019,4.5,Director of Children's Services and Education
Other Supplies,Variety Stores,Tk Maxx,Supplies and Services related expenditure,07/10/2019,4.16,Director of Children's Services and Education
Retail,Grocery Stores/Supermarkets,Sainsburys S/mkt,Agency and Third Party Payments related expenditure,07/10/2019,20,Director of Children's Services and Education
Retail,Grocery Stores/Supermarkets,Sainsburys S/mkts,Supplies and Services related expenditure,07/10/2019,7.71,Director of Children's Services and Education
Retail,Grocery Stores/Supermarkets,Sainsburys S/mkts,Supplies and Services related expenditure,07/10/2019,15.2,Director of Children's Services and Education
Transportation,Passenger Railways,Trainline,Transport related expenditure,07/10/2019,84.1,Director of Regeneration
Transportation,Passenger Railways,Trainline,Transport related expenditure,07/10/2019,84.1,Director of Regeneration
Eating And Drinking Places,Fast Food Restaurants,McDonalds,Supplies and Services related expenditure,07/10/2019,4.81,Director of Children's Services and Education
Miscellaneous,Other Direct Marketers,Amazon.Co.Uk,Supplies and Services related expenditure,07/10/2019,12.98,Director of Children's Services and Education
Retail,Grocery Stores/Supermarkets,Sainsburys S/mkts,Supplies and Services related expenditure,07/10/2019,0.5,Director of Adult Services
Other Supplies,Department Stores,The Range,Supplies and Services related expenditure,07/10/2019,4.17,Director of Adult Services
Other Supplies,Discount Stores,B&m Retail,Supplies and Services related expenditure,07/10/2019,5.83,Director of Adult Services
Eating And Drinking Places,Eating Places/Restaurants,Cafe Henry,Supplies and Services related expenditure,07/10/2019,4.2,"Director of Culture, Leisure & Regulatory Services"
Eating And Drinking Places,Fast Food Restaurants,Subway Ramshill,Supplies and Services related expenditure,07/10/2019,3.58,Director of Children's Services and Education
Eating And Drinking Places,Fast Food Restaurants,Subway Ramshill,Supplies and Services related expenditure,07/10/2019,0.7,Director of Children's Services and Education
Business To Business Other Sup,Uniforms & Commercial Clothing,Trafalgar Eurotech Ltd,Supplies and Services related expenditure,07/10/2019,66.75,"Director of Housing, Neighbourhood and Building Services"
Retail,Barber/Beauty Shops,Capital H&b Ltd,Supplies and Services related expenditure,07/10/2019,149.96,"Director of Housing, Neighbourhood and Building Services"
Transportation,Passenger Railways,Swrailway Tck Off,Transport related expenditure,07/10/2019,63.83,"Director of Housing, Neighbourhood and Building Services"
Other Supplies,Misc Speciality Retail,Amznmktplace,Supplies and Services related expenditure,07/10/2019,15.79,Director of Portsmouth International Port
Eating And Drinking Places,Eating Places/Restaurants,Wildwood Port Solent,Supplies and Services related expenditure,07/10/2019,62.92,Director of Portsmouth International Port
Entertainment,Member Clubs/Sport/Rec/Golf,Horizon Leisure Trust,Supplies and Services related expenditure,07/10/2019,6.6,Director of Adult Services
Retail,Grocery Stores/Supermarkets,Sainsburys S/mkts,Supplies and Services related expenditure,07/10/2019,1.67,Director of Children's Services and Education
Eating And Drinking Places,Fast Food Restaurants,Subway Ocean Park,Supplies and Services related expenditure,07/10/2019,5.82,Director of Children's Services and Education
Entertainment,Aquariums/Seaquariums,Blue Reef Aquarium,Supplies and Services related expenditure,07/10/2019,7.29,Director of Children's Services and Education
Retail,Sporting Goods Stores,Footasylum,Supplies and Services related expenditure,07/10/2019,29.16,Director of Children's Services and Education
Transportation,Passenger Railways,Trainline,Transport related expenditure,07/10/2019,186.87,Director of Public Health
Business To Business Facility/,Hardware Equipment/Supplies,Vl Architectural Ironm,Supplies and Services related expenditure,07/10/2019,30,Director of Regeneration
Other Supplies,Misc Speciality Retail,Amznmktplace Amazon.Co.Uk,Premises related expenditure,07/10/2019,49.96,Director of Children's Services and Education
Government,Govt Serv - Default,Hampshire County Counc,Premises related expenditure,07/10/2019,48.14,Director of Children's Services and Education
Government,Govt Serv - Default,Hampshire County Counc,Supplies and Services related expenditure,07/10/2019,38.35,Director of Children's Services and Education
Other Supplies,Misc Speciality Retail,Amznmktplace,Supplies and Services related expenditure,07/10/2019,14.96,Director of Children's Services and Education
Other Supplies,Misc Speciality Retail,Amznmktplace,Supplies and Services related expenditure,07/10/2019,75.86,Director of Children's Services and Education
Other Supplies,Misc Speciality Retail,Amznmktplace,Supplies and Services related expenditure,07/10/2019,5.19,Director of Children's Services and Education
Transportation,Passenger Railways,Swrailwayselfserve,Transport related expenditure,07/10/2019,5,Director of Children's Services and Education
Transportation,Passenger Railways,Swrailwayselfserve,Transport related expenditure,07/10/2019,5,Director of Children's Services and Education
Transportation,Passenger Railways,Swrailwayselfserve,Transport related expenditure,07/10/2019,5,Director of Children's Services and Education
Transportation,Passenger Railways,Swrailwayselfserve,Premises related expenditure,07/10/2019,4.76,Director of Children's Services and Education
Business Expenses/Services,Postage Stamps,Post Office Counter,Supplies and Services related expenditure,07/10/2019,50,Director of Children's Services and Education
Other Supplies,Camera & Photo Supply Store,Www.Peterevansstorages,Supplies and Services related expenditure,07/10/2019,1288,Director of Portsmouth International Port
Transportation,Passenger Railways,Swrailway Tck Off,Transport related expenditure,07/10/2019,76.6,"Director of Culture, Leisure & Regulatory Services"
Transportation,"Parking Lots, Meters, Garages",Portsmouth City Co,Transport related expenditure,07/10/2019,10.25,Chief Exec
Retail,Grocery Stores/Supermarkets,Sainsburys S/mkts,Supplies and Services related expenditure,07/10/2019,3.55,Director of Children's Services and Education
Eating And Drinking Places,Eating Places/Restaurants,Greggs Plc,Supplies and Services related expenditure,07/10/2019,0.92,Director of Children's Services and Education
Eating And Drinking Places,Eating Places/Restaurants,Greggs Plc,Supplies and Services related expenditure,07/10/2019,1,Director of Children's Services and Education
Eating And Drinking Places,Fast Food Restaurants,Starbucks Coffee,Supplies and Services related expenditure,07/10/2019,4.05,Director of Children's Services and Education
Entertainment,Billiard/Pool Establishment,Craneswater Club,Supplies and Services related expenditure,07/10/2019,5.53,Director of Children's Services and Education
Transportation,Passenger Railways,Trainline,Transport related expenditure,07/10/2019,73.73,Director of Children's Services and Education
Caterers Food,Caterers,Bookerecomm,Supplies and Services related expenditure,07/10/2019,6.59,"Director of Housing, Neighbourhood and Building Services"
Caterers Food,Caterers,Bookerecomm,Supplies and Services related expenditure,07/10/2019,85.84,"Director of Housing, Neighbourhood and Building Services"
Government,Govt Serv - Default,Havant Bc,Agency and Third Party Payments related expenditure,07/10/2019,177.6,"Director of Housing, Neighbourhood and Building Services"
Retail,Grocery Stores/Supermarkets,Tesco Stores 4611,Supplies and Services related expenditure,07/10/2019,40,Director of Children's Services and Education
Retail,Grocery Stores/Supermarkets,Sainsburys S/mkts,Supplies and Services related expenditure,07/10/2019,1.04,Director of Children's Services and Education
Retail,Grocery Stores/Supermarkets,Sainsburys S/mkts,Supplies and Services related expenditure,07/10/2019,19,Director of Children's Services and Education
Retail,Drug Stores & Pharmacies,Rowlands Pharmacy,Supplies and Services related expenditure,07/10/2019,4.48,Director of Children's Services and Education
Facilities/Repair Services,Spec Contractors - Default,Rewards4 Dimension,Supplies and Services related expenditure,07/10/2019,11.25,Director of Children's Services and Education
Business To Business Eqpt/Furn,Book Stores,Edgy Productions Ltd,Supplies and Services related expenditure,07/10/2019,61,Director of Children's Services and Education
Business To Business Eqpt/Furn,Stationery/Office Supplies,Www.Banneruk.Com,Supplies and Services related expenditure,07/10/2019,10.64,Director of Corporate Services
Business Services,Business Services - Default,Fast Key Services Limi,Supplies and Services related expenditure,07/10/2019,11.03,Director of Corporate Services
Miscellaneous,Member Organizations - Def,Www.Cips.Org,Employees related expenditure,07/10/2019,33.33,Director of Finance & Resources
Business To Business Eqpt/Furn,Stationery/Office Supplies,Www.Banneruk.Com,Supplies and Services related expenditure,07/10/2019,404.49,"Director of Culture, Leisure & Regulatory Services"
Government,Schools - Default,Solent Maths Hub,Supplies and Services related expenditure,07/10/2019,60,Director of Children's Services and Education
Government,Govt Serv - Default,Dvla Vehicle Tax,Transport related expenditure,07/10/2019,267.5,Director of Children's Services and Education
Other Supplies,Discount Stores,Www.Argos.Co.Uk,Supplies and Services related expenditure,07/10/2019,111.91,Director of Adult Services
Eating And Drinking Places,Fast Food Restaurants,Albion Kebab,Supplies and Services related expenditure,07/10/2019,5.42,Director of Children's Services and Education
Transportation,Passenger Railways,New Southern Railw,Transport related expenditure,07/10/2019,33.1,Director of Children's Services and Education
Retail,Grocery Stores/Supermarkets,Asda Groceries Online,Supplies and Services related expenditure,07/10/2019,-0.35,Director of Children's Services and Education
Retail,Grocery Stores/Supermarkets,Asda Groceries Online,Supplies and Services related expenditure,07/10/2019,53.55,Director of Children's Services and Education
Retail,Sporting Goods Stores,Fitness Superstore,Supplies and Services related expenditure,07/10/2019,30.99,"Director of Housing, Neighbourhood and Building Services"
Business Expenses/Services,Books/Periodicals/Newspapers,Sp * Schoolmusicalsco,Supplies and Services related expenditure,07/10/2019,48.95,Director of Children's Services and Education
Utilities,Phone Serv/Equip Utility,Vodafone Ltd,Supplies and Services related expenditure,07/10/2019,118.61,Director of Children's Services and Education
Medical,Lab/Med/Hospital Equipment,Wightman & Parrish Ltd,Premises related expenditure,07/10/2019,276.07,"Director of Housing, Neighbourhood and Building Services"
Other Supplies,Department Stores,Southern Co-Op 0247,Supplies and Services related expenditure,07/10/2019,1.25,Director of Adult Services
Government,Govt Serv - Default,Pcc Moto Payment,Agency and Third Party Payments related expenditure,07/10/2019,54.24,Director of Children's Services and Education
Professional Services,Professional Services - Def,Myfonts,Supplies and Services related expenditure,07/10/2019,49,Director of Corporate Services
Professional Services,Professional Services - Def,Myfonts,Supplies and Services related expenditure,07/10/2019,114,Director of Corporate Services
Retail,Grocery Stores/Supermarkets,Asda Groceries Online,Supplies and Services related expenditure,07/10/2019,-2,Director of Children's Services and Education
Retail,Grocery Stores/Supermarkets,Asda Groceries Online,Supplies and Services related expenditure,07/10/2019,58.4,Director of Children's Services and Education
Retail,Grocery Stores/Supermarkets,Asda Groceries Online,Supplies and Services related expenditure,07/10/2019,73.88,Director of Children's Services and Education
Business To Business Eqpt/Furn,Book Stores,Www.Ase.Org.Uk,Supplies and Services related expenditure,07/10/2019,90,Director of Children's Services and Education
Business To Business Eqpt/Furn,Stationery/Office Supplies,Www.Banneruk.Com,Supplies and Services related expenditure,07/10/2019,14.58,Director of Adult Services
Business To Business Eqpt/Furn,Stationery/Office Supplies,Www.Banneruk.Com,Supplies and Services related expenditure,07/10/2019,17.47,Director of Adult Services
Other Supplies,Misc Speciality Retail,C J S Portsmouth Ltd,Supplies and Services related expenditure,07/10/2019,155,"Director of Culture, Leisure & Regulatory Services"
Business Expenses/Services,Postage Stamps,Post Office Counter,Supplies and Services related expenditure,07/10/2019,2.26,Director of Children's Services and Education
Retail,Grocery Stores/Supermarkets,Tesco Store 3055,Supplies and Services related expenditure,07/10/2019,21.25,Director of Children's Services and Education
Retail,Grocery Stores/Supermarkets,Tesco Store 3055,Supplies and Services related expenditure,07/10/2019,29.15,Director of Children's Services and Education
Retail,Grocery Stores/Supermarkets,Tesco Store 3055,Supplies and Services related expenditure,07/10/2019,8.13,Director of Children's Services and Education
Retail,Grocery Stores/Supermarkets,Tesco Store 3055,Supplies and Services related expenditure,07/10/2019,12.41,Director of Children's Services and Education
Retail,Grocery Stores/Supermarkets,Tesco Store 3055,Supplies and Services related expenditure,07/10/2019,13.19,Director of Children's Services and Education
Retail,Grocery Stores/Supermarkets,Tesco Store 3055,Supplies and Services related expenditure,07/10/2019,31.84,Director of Children's Services and Education
Business To Business Other Sup,Uniforms & Commercial Clothing,Arco Ltd,Supplies and Services related expenditure,07/10/2019,32.15,"Director of Housing, Neighbourhood and Building Services"
Transportation,Passenger Railways,Trainline.Com,Supplies and Services related expenditure,07/10/2019,43.02,Director of Children's Services and Education
Transportation,"Parking Lots, Meters, Garages",Ringoparkbyphone,Transport related expenditure,07/10/2019,7.17,Director of Regeneration
Government,Govt Serv - Default,Portsmouth City Co,Supplies and Services related expenditure,07/10/2019,31.67,Director of Children's Services and Education
Automobile Services & Supplies,Service Stations,Asda Petrol 4583,Transport related expenditure,07/10/2019,47.5,"Director of Housing, Neighbourhood and Building Services"
Other Supplies,Misc Speciality Retail,Amznmktplace,Supplies and Services related expenditure,07/10/2019,15.95,Director of Children's Services and Education
Retail,Electronics Sales,Vista Fire Products,Premises related expenditure,07/10/2019,29.08,Director of Children's Services and Education
Business To Business Services,Misc Publishing & Printing,Harberson Ltd,Supplies and Services related expenditure,07/10/2019,62,Director of Children's Services and Education
Business To Business Services,Misc Publishing & Printing,Harberson Ltd,Supplies and Services related expenditure,07/10/2019,10,Director of Children's Services and Education
Transportation,Passenger Railways,Swrailway Tck Off,Transport related expenditure,07/10/2019,9.2,Chief Exec
Eating And Drinking Places,Eating Places/Restaurants,Greggs Plc,Supplies and Services related expenditure,07/10/2019,1.5,Director of Children's Services and Education
Eating And Drinking Places,Fast Food Restaurants,Costa Coffee 43042195,Supplies and Services related expenditure,07/10/2019,2.13,Director of Children's Services and Education
Eating And Drinking Places,Fast Food Restaurants,Costa Coffee 43042195,Supplies and Services related expenditure,07/10/2019,3.45,Director of Children's Services and Education
Retail,Grocery Stores/Supermarkets,Tesco Stores 4579,Supplies and Services related expenditure,07/10/2019,1.67,Director of Children's Services and Education
Retail,Grocery Stores/Supermarkets,Tesco Stores 4579,Supplies and Services related expenditure,07/10/2019,24.67,Director of Children's Services and Education
Transportation,Passenger Railways,Swrailway Tck Off,Transport related expenditure,07/10/2019,97.6,"Director of Housing, Neighbourhood and Building Services"
Miscellaneous,Charitable/Soc Service Orgs,St John Ambulance,Employees related expenditure,07/10/2019,240,Director of Children's Services and Education
Transportation,Passenger Railways,Swrailwayselfserve,Transport related expenditure,07/10/2019,39.17,Solent LEP
Business To Business Eqpt/Furn,Stationery/Office Supplies,Www.Banneruk.Com,Premises related expenditure,07/10/2019,14.42,"Director of Housing, Neighbourhood and Building Services"
Business To Business Eqpt/Furn,Stationery/Office Supplies,Www.Banneruk.Com,Premises related expenditure,07/10/2019,37.44,"Director of Housing, Neighbourhood and Building Services"
Retail,Grocery Stores/Supermarkets,Js Online Grocery,Supplies and Services related expenditure,07/10/2019,7.6,Director of Children's Services and Education
Retail,Grocery Stores/Supermarkets,Js Online Grocery,Supplies and Services related expenditure,07/10/2019,1.67,Director of Children's Services and Education
Retail,Grocery Stores/Supermarkets,Js Online Grocery,Supplies and Services related expenditure,07/10/2019,10.42,Director of Children's Services and Education
Retail,Grocery Stores/Supermarkets,Js Online Grocery,Supplies and Services related expenditure,07/10/2019,100.74,Director of Children's Services and Education
Facilities/Repair Supplies,Hardware Stores,Home Bargains,Supplies and Services related expenditure,07/10/2019,0.82,Director of Children's Services and Education
Government,Govt Serv - Default,Portsmouth Council,Transport related expenditure,07/10/2019,10,Director of Children's Services and Education
Business To Business Facility/,Industrial Supplies - Def,Www.Theshopfittingshop,Premises related expenditure,07/10/2019,32.65,Director of Children's Services and Education
Auto/Vehicle Expenses,Automated Fuel Dispensers,Asda Petrol 4583,Employees related expenditure,07/10/2019,52.06,Director of Children's Services and Education
Equipment And Furniture,Furniture/Equip Stores,Www.Ikea.Com,Premises related expenditure,07/10/2019,290,Director of Children's Services and Education
Entertainment,Tourist Attractions And Xhbt,The Spinnaker Tower,Supplies and Services related expenditure,07/10/2019,1.88,Director of Children's Services and Education
Entertainment,Tourist Attractions And Xhbt,The Spinnaker Tower,Supplies and Services related expenditure,07/10/2019,7.08,Director of Children's Services and Education
Miscellaneous,Misc Personal Serv - Def,Portsmouth Cultural Trus,Supplies and Services related expenditure,07/10/2019,5.5,Director of Finance & Resources
Transportation,Passenger Railways,Swrailway Tck Off,Transport related expenditure,07/10/2019,24.5,Director of Finance & Resources
Miscellaneous,Misc Personal Serv - Def,Portsmouth Cultural Trus,Supplies and Services related expenditure,07/10/2019,27.5,Director of Finance & Resources
Business To Business Facility/,Industrial Supplies - Def,Www.Arco.Co.Uk,Supplies and Services related expenditure,07/10/2019,136.48,Director of Regeneration
Business To Business Services,Testing Labs (Non-Medical),Pass Portable Applian,Premises related expenditure,07/10/2019,398.89,Director of Portsmouth International Port
Retail,Electronics Sales,Nicontrols,Premises related expenditure,07/10/2019,426.06,Director of Portsmouth International Port
Business Services,Business Services - Default,Fast Key Services Limi,Supplies and Services related expenditure,07/10/2019,6.05,Director of Children's Services and Education
Government,Govt Serv - Default,Portsmouth City Co,Supplies and Services related expenditure,07/10/2019,63.33,Director of Children's Services and Education
Other Supplies,Misc Speciality Retail,Amznmktplace,Supplies and Services related expenditure,07/10/2019,6.93,Director of Children's Services and Education
Miscellaneous,Other Direct Marketers,Amazon.Co.Uk,Supplies and Services related expenditure,07/10/2019,9.15,Director of Children's Services and Education
Other Supplies,Misc Speciality Retail,Amznmktplace,Supplies and Services related expenditure,07/10/2019,8.13,Director of Children's Services and Education
Other Supplies,Misc Speciality Retail,Amznmktplace,Supplies and Services related expenditure,07/10/2019,5.69,Director of Children's Services and Education
Government,Govt Serv - Default,Hampshire County Counc,Supplies and Services related expenditure,07/10/2019,17.4,Director of Children's Services and Education
Other Supplies,Misc Speciality Retail,Amazon.Co.Uk,Supplies and Services related expenditure,07/10/2019,28.27,Director of Children's Services and Education
Retail,Grocery Stores/Supermarkets,Asda Groceries Online,Supplies and Services related expenditure,07/10/2019,32.7,Director of Children's Services and Education
Retail,Grocery Stores/Supermarkets,Asda Groceries Online,Supplies and Services related expenditure,07/10/2019,9,Director of Children's Services and Education
Retail,Grocery Stores/Supermarkets,Asda Groceries Online,Supplies and Services related expenditure,07/10/2019,4.17,Director of Children's Services and Education
Retail,Grocery Stores/Supermarkets,Tesco Stores 4579,Supplies and Services related expenditure,07/10/2019,79.34,Director of Children's Services and Education
Government,Colleges/Univ/Jc/Profession,Gls Educational Su,Supplies and Services related expenditure,07/10/2019,95.96,Director of Children's Services and Education
Government,Govt Serv - Default,Hampshire County Counc,Supplies and Services related expenditure,07/10/2019,197.64,Director of Children's Services and Education
Government,Govt Serv - Default,Hampshire County Counc,Supplies and Services related expenditure,07/10/2019,413.21,Director of Children's Services and Education
Business Expenses/Services,Stationery Stores,Civica UK Ltd,Supplies and Services related expenditure,07/10/2019,142,"Director of Housing, Neighbourhood and Building Services"
Medical,Lab/Med/Hospital Equipment,Wightman & Parrish,Premises related expenditure,07/10/2019,6.8,Director of Adult Services
Medical,Lab/Med/Hospital Equipment,Wightman & Parrish,Premises related expenditure,07/10/2019,27.66,"Director of Housing, Neighbourhood and Building Services"
Business To Business Other Sup,Uniforms & Commercial Clothing,Arco Ltd,Supplies and Services related expenditure,02/10/2019,12.65,"Director of Housing, Neighbourhood and Building Services"
Business To Business Other Sup,Uniforms & Commercial Clothing,Arco Ltd,Supplies and Services related expenditure,04/10/2019,109,Director of Portsmouth International Port
Business To Business Other Sup,Uniforms & Commercial Clothing,Arco Ltd,Supplies and Services related expenditure,07/10/2019,19.83,Director of Portsmouth International Port
Business To Business Other Sup,Uniforms & Commercial Clothing,Arco Ltd,Supplies and Services related expenditure,07/10/2019,60.67,"Director of Housing, Neighbourhood and Building Services"
Other Supplies,Misc Speciality Retail,Amazon.Co.Uk,Supplies and Services related expenditure,07/10/2019,25.99,Director of Regeneration
Hotels And Motels,Lodging/Hotels/Motels/Resorts,Express By Holiday Inn,Supplies and Services related expenditure,07/10/2019,360,"Director of Housing, Neighbourhood and Building Services"
Hotels And Motels,Premier Travel Inns,Premier Inn 44535935,Supplies and Services related expenditure,07/10/2019,102.08,Director of Children's Services and Education
Other Supplies,Misc Speciality Retail,Amznmktplace Amazon.Co.Uk,Supplies and Services related expenditure,07/10/2019,-28.33,Director of Children's Services and Education
Other Supplies,Misc Speciality Retail,Amznmktplace,Supplies and Services related expenditure,08/10/2019,15.98,Director of Children's Services and Education
Miscellaneous,Charitable/Soc Service Orgs,The Salvation Army,Capital related expenditure,08/10/2019,250,Capital - Housing RA
Miscellaneous,Other Direct Marketers,Amazon.Co.Uk,Supplies and Services related expenditure,08/10/2019,99.48,Director of Regeneration
Equipment And Furniture,Equip/Furn Rent/Lease Serv,Beaver Tool Hire Chichest,Supplies and Services related expenditure,08/10/2019,466.48,"Director of Housing, Neighbourhood and Building Services"
Business Services,Business Services - Default,Fast Key Services Limi,Supplies and Services related expenditure,08/10/2019,13.53,"Director of Housing, Neighbourhood and Building Services"
Other Supplies,Misc Speciality Retail,Amznmktplace Amazon.Co.Uk,Supplies and Services related expenditure,08/10/2019,149.29,"Director of Housing, Neighbourhood and Building Services"
Business Services,Business Services - Default,Pembroke Lodge,Supplies and Services related expenditure,08/10/2019,8.17,Director of Children's Services and Education
Business Expenses/Services,Stationery Stores,Www.Ukpos.Com,Supplies and Services related expenditure,08/10/2019,222.4,Director of Regeneration
Transportation,Passenger Railways,Swrailway Tck Off,Transport related expenditure,08/10/2019,47.2,Director of Children's Services and Education
Caterers Food,Caterers,Bookerecomm,Supplies and Services related expenditure,08/10/2019,190.1,"Director of Housing, Neighbourhood and Building Services"
Caterers Food,Caterers,Bookerecomm,Supplies and Services related expenditure,08/10/2019,26.77,"Director of Housing, Neighbourhood and Building Services"
Transportation,Marinas,Associated British Por,Supplies and Services related expenditure,08/10/2019,9.6,Director of Portsmouth International Port
Retail,Music Stores/Pianos,Www.Outoftheark.Com,Supplies and Services related expenditure,08/10/2019,20.95,Director of Children's Services and Education
Retail,Music Stores/Pianos,Www.Outoftheark.Com,Supplies and Services related expenditure,08/10/2019,13.25,Director of Children's Services and Education
Retail,Music Stores/Pianos,Www.Outoftheark.Com,Supplies and Services related expenditure,08/10/2019,14.17,Director of Children's Services and Education
Retail,Music Stores/Pianos,Www.Outoftheark.Com,Supplies and Services related expenditure,08/10/2019,3.25,Director of Children's Services and Education
Business Expenses/Services,Postage Stamps,Postoffice Selfservice,Supplies and Services related expenditure,08/10/2019,14.7,"Director of Housing, Neighbourhood and Building Services"
Retail,Grocery Stores/Supermarkets,Tesco Stores 6679,Supplies and Services related expenditure,08/10/2019,3.16,Director of Children's Services and Education
Retail,Grocery Stores/Supermarkets,Tesco Stores 6679,Supplies and Services related expenditure,08/10/2019,8.29,Director of Children's Services and Education
Transportation,Passenger Railways,Swrailway Tck Off,Transport related expenditure,08/10/2019,11.9,Director of Regeneration
Equipment And Furniture,Household Appliance Stores,Machine Mart Ltd,Supplies and Services related expenditure,08/10/2019,49.98,"Director of Housing, Neighbourhood and Building Services"
Transportation,"Parking Lots, Meters, Garages",3c_*portsmouth City Co,Transport related expenditure,08/10/2019,10,Director of Children's Services and Education
Utilities,Computer Network/Info Svcs,Siteground Hosting,Supplies and Services related expenditure,08/10/2019,14.95,Director of Corporate Services
Facilities/Repair Supplies,Hardware Stores,Toolstation Ltd,Premises related expenditure,08/10/2019,6.24,Director of Children's Services and Education
Retail,Grocery Stores/Supermarkets,Tesco Stores 4579,Supplies and Services related expenditure,08/10/2019,2.5,Director of Children's Services and Education
Retail,Grocery Stores/Supermarkets,Tesco Stores 4579,Supplies and Services related expenditure,08/10/2019,12.12,Director of Children's Services and Education
Retail,Grocery Stores/Supermarkets,Tesco Stores 4579,Supplies and Services related expenditure,08/10/2019,14.08,Director of Children's Services and Education
Retail,Grocery Stores/Supermarkets,Tesco Stores 4579,Supplies and Services related expenditure,08/10/2019,148.01,Director of Children's Services and Education
Retail,Grocery Stores/Supermarkets,Aldi Stores Ltd,Supplies and Services related expenditure,08/10/2019,1.91,Director of Children's Services and Education
Retail,Grocery Stores/Supermarkets,Aldi Stores Ltd,Supplies and Services related expenditure,08/10/2019,5.04,Director of Children's Services and Education
Retail,Grocery Stores/Supermarkets,Tesco Stores 4579,Supplies and Services related expenditure,08/10/2019,18.96,Director of Children's Services and Education
Retail,Grocery Stores/Supermarkets,Tesco Stores 4579,Supplies and Services related expenditure,08/10/2019,23.79,Director of Children's Services and Education
Other Supplies,Misc Speciality Retail,Amznmktplace,Supplies and Services related expenditure,08/10/2019,30.2,Director of Children's Services and Education
Other Supplies,Misc Speciality Retail,Amznmktplace,Supplies and Services related expenditure,08/10/2019,34.99,Director of Children's Services and Education
Freight/Courier/Warehouse Svcs,Public Warehousing,Safestore Limited,Premises related expenditure,08/10/2019,-14.99,"Director of Housing, Neighbourhood and Building Services"
Freight/Courier/Warehouse Svcs,Public Warehousing,Safestore Limited,Premises related expenditure,08/10/2019,-75.23,"Director of Housing, Neighbourhood and Building Services"
Miscellaneous,Charitable/Soc Service Orgs,The Salvation Army,Capital related expenditure,08/10/2019,190,Capital - Housing RA
Hotels And Motels,Premier Travel Inns,Premier Inn44025605,Agency and Third Party Payments related expenditure,08/10/2019,483.75,"Director of Housing, Neighbourhood and Building Services"
Hotels And Motels,Premier Travel Inns,Premier Inn44016890,Supplies and Services related expenditure,08/10/2019,666.25,"Director of Housing, Neighbourhood and Building Services"
Hotels And Motels,Travelodge,Travelodge Gb0000,Agency and Third Party Payments related expenditure,08/10/2019,1466.64,"Director of Housing, Neighbourhood and Building Services"
Other Supplies,Department Stores,Southern Co-Op 0247,Supplies and Services related expenditure,08/10/2019,4.4,Director of Adult Services
Other Supplies,Misc Speciality Retail,Www.Lockdoctor.Biz,Premises related expenditure,08/10/2019,5.9,Director of Adult Services
Other Supplies,Misc Speciality Retail,Www.Lockdoctor.Biz,Supplies and Services related expenditure,08/10/2019,0.95,Director of Adult Services
Transportation,Passenger Railways,Swrailway Tck Off,Transport related expenditure,08/10/2019,85.4,Director of Finance & Resources
Transportation,Passenger Railways,Trainline,Transport related expenditure,08/10/2019,86.9,Director of Regeneration
Retail,Grocery Stores/Supermarkets,Waitrose 207,Supplies and Services related expenditure,08/10/2019,2.88,Director of Children's Services and Education
Transportation,"Parking Lots, Meters, Garages",Exchange Putney Cp,Transport related expenditure,08/10/2019,3.2,Director of Children's Services and Education
Retail,Grocery Stores/Supermarkets,Waitrose 207,Supplies and Services related expenditure,08/10/2019,3.6,Director of Children's Services and Education
Miscellaneous,Charitable/Soc Service Orgs,Guide Dogs,Supplies and Services related expenditure,08/10/2019,13.49,"Director of Culture, Leisure & Regulatory Services"
Miscellaneous,Charitable/Soc Service Orgs,Guide Dogs,Supplies and Services related expenditure,08/10/2019,28.96,"Director of Culture, Leisure & Regulatory Services"
Facilities/Repair Supplies,Bicycle Shops/Sales/Service,Halfords 0852,Supplies and Services related expenditure,08/10/2019,51.94,"Director of Culture, Leisure & Regulatory Services"
Miscellaneous,Sport/Recreational Camps,The Base Skatepark Cic,Supplies and Services related expenditure,08/10/2019,10,Director of Children's Services and Education
Transportation,Passenger Railways,Swrailway Tck Off,Supplies and Services related expenditure,08/10/2019,57,Director of Finance & Resources
Transportation,Local Commuter Transport,Hovertravel Ltd,Transport related expenditure,08/10/2019,19.36,Director of Children's Services and Education
Business To Business Facility/,Industrial Supplies - Def,Www.Arco.Co.Uk,Supplies and Services related expenditure,08/10/2019,159.45,Director of Regeneration
Business To Business Facility/,Industrial Supplies - Def,Www.Arco.Co.Uk,Supplies and Services related expenditure,08/10/2019,128.75,"Director of Housing, Neighbourhood and Building Services"
Entertainment,Member Clubs/Sport/Rec/Golf,Horizon Leisure Trust,Supplies and Services related expenditure,08/10/2019,6.6,Director of Adult Services
Hotels And Motels,Lodging/Hotels/Motels/Resorts,Best Western Royal Bea,Supplies and Services related expenditure,08/10/2019,100,Director of Corporate Services
Retail,Sporting Goods Stores,Decathlon Portsmouth,Supplies and Services related expenditure,08/10/2019,3.33,Director of Children's Services and Education
Retail,Grocery Stores/Supermarkets,Www.Iceland.Co.Uk,Supplies and Services related expenditure,08/10/2019,90.61,Director of Adult Services
Retail,Grocery Stores/Supermarkets,Southern Co-Op 0006,Supplies and Services related expenditure,08/10/2019,11.89,Director of Children's Services and Education
Automobile Services & Supplies,Service Stations,Asda Petrol 4583,Supplies and Services related expenditure,08/10/2019,3.65,Director of Children's Services and Education
Eating And Drinking Places,Fast Food Restaurants,Costa Coffee 43042195,Supplies and Services related expenditure,08/10/2019,5.04,Director of Children's Services and Education
Eating And Drinking Places,Fast Food Restaurants,Costa Coffee 43042195,Supplies and Services related expenditure,08/10/2019,3.75,Director of Children's Services and Education
Retail,Grocery Stores/Supermarkets,Tesco Stores 6679,Supplies and Services related expenditure,08/10/2019,5.88,Director of Children's Services and Education
Miscellaneous,Elementary/Secondary School,Historicala,Supplies and Services related expenditure,08/10/2019,17.5,Director of Children's Services and Education
Miscellaneous,Elementary/Secondary School,Historicala,Supplies and Services related expenditure,08/10/2019,51,Director of Children's Services and Education
Other Supplies,Misc Speciality Retail,Amznmktplace,Supplies and Services related expenditure,08/10/2019,16.34,Director of Children's Services and Education
Other Supplies,Misc Speciality Retail,Amznmktplace,Supplies and Services related expenditure,08/10/2019,46.26,Director of Children's Services and Education
Other Supplies,Misc Speciality Retail,Amznmktplace,Supplies and Services related expenditure,08/10/2019,46.52,Director of Children's Services and Education
Transportation,Bus Lines/Charter/Tour,The Provincial Bus,Transport related expenditure,08/10/2019,56,Director of Adult Services
Eating And Drinking Places,Bars/Taverns/Lounges/Discos,Farmhouse,Departmental Recharges related expenditure,08/10/2019,123.96,Director of Adult Services
Hotels And Motels,Hotel Ibis,Hotel Ibis,Departmental Recharges related expenditure,08/10/2019,361.67,Director of Adult Services
Facilities/Repair Services,Spec Contractors - Default,Www.Upvcspares4repairs,Premises related expenditure,08/10/2019,5.42,Director of Children's Services and Education
Other Supplies,Misc Speciality Retail,Https://Www.Thedyslexi,Supplies and Services related expenditure,08/10/2019,14.07,Director of Children's Services and Education
Retail,Grocery Stores/Supermarkets,Tesco Store 3048,Supplies and Services related expenditure,08/10/2019,40,Director of Children's Services and Education
Retail,Grocery Stores/Supermarkets,Tesco Store 3048,Supplies and Services related expenditure,08/10/2019,60,Director of Children's Services and Education
Transportation,Passenger Railways,Swrailway Tck Off,Transport related expenditure,08/10/2019,85.4,"Director of Culture, Leisure & Regulatory Services"
Transportation,Passenger Railways,Swrailwayselfserve,Transport related expenditure,08/10/2019,93.6,Director of Children's Services and Education
Equipment And Furniture,Household Appliance Stores,Wilko Retail Limit,Premises related expenditure,08/10/2019,9.17,"Director of Housing, Neighbourhood and Building Services"
Retail,Grocery Stores/Supermarkets,Co-Op Group 070639,Supplies and Services related expenditure,08/10/2019,1.5,Director of Children's Services and Education
Retail,Grocery Stores/Supermarkets,Co-Op Group 070639,Supplies and Services related expenditure,08/10/2019,1.7,Director of Children's Services and Education
Entertainment,Billiard/Pool Establishment,Craneswater Club,Supplies and Services related expenditure,08/10/2019,11.41,Director of Children's Services and Education
Retail,Grocery Stores/Supermarkets,Fruit Basket Ltd,Supplies and Services related expenditure,08/10/2019,387.67,"Director of Housing, Neighbourhood and Building Services"
Facilities/Repair Supplies,Floor Covering Stores,Direct Carpet Centre,Agency and Third Party Payments related expenditure,08/10/2019,391,Director of Children's Services and Education
Medical,Lab/Med/Hospital Equipment,Www.Wmsplc.Co.Uk,Supplies and Services related expenditure,08/10/2019,144.65,Director of Public Health
Retail,Grocery Stores/Supermarkets,Sainsburys S/mkts,Supplies and Services related expenditure,08/10/2019,3.2,Director of Children's Services and Education
Business Expenses/Services,Stationery Stores,Www.Tts-Groups.Co.Uk,Supplies and Services related expenditure,08/10/2019,3.99,Director of Children's Services and Education
Transportation,"Parking Lots, Meters, Garages",3c_*portsmouth City Co,Transport related expenditure,08/10/2019,7.08,Director of Children's Services and Education
Transportation,Local Commuter Transport,Hovertravel Ltd,Transport related expenditure,08/10/2019,19.36,Director of Children's Services and Education
Business Expenses/Services,Stationery Stores,Www.Primaryteaching.Co,Supplies and Services related expenditure,08/10/2019,15.6,Director of Children's Services and Education
Facilities/Repair Supplies,Hardware Stores,Www.Schoolmeritstickers.,Supplies and Services related expenditure,08/10/2019,138.96,Director of Children's Services and Education
Facilities/Repair Supplies,Hardware Stores,Www.Schoolmeritstickers.,Supplies and Services related expenditure,08/10/2019,176.6,Director of Children's Services and Education
Business Expenses/Services,Stationery Stores,Www.Primaryteaching.Co,Supplies and Services related expenditure,08/10/2019,197.54,Director of Children's Services and Education
Professional Services,Computer Program/Sys Design,Paypal,Supplies and Services related expenditure,08/10/2019,1217.95,"Director of Housing, Neighbourhood and Building Services"
Other Supplies,Misc Speciality Retail,Portsmouth Water Ltd,Supplies and Services related expenditure,08/10/2019,15,Director of Children's Services and Education
Government,Schools - Default,Ttrockstars.Com,Supplies and Services related expenditure,08/10/2019,15.18,Director of Children's Services and Education
Miscellaneous,Other Direct Marketers,Silver Fox,Supplies and Services related expenditure,08/10/2019,30,Director of Corporate Services
Transportation,Passenger Railways,New Southern Railw,Transport related expenditure,08/10/2019,16.67,Director of Children's Services and Education
Transportation,Passenger Railways,Swrailwayselfserve,Transport related expenditure,08/10/2019,35.67,Director of Children's Services and Education
Transportation,"Parking Lots, Meters, Garages",Brighton & Hove City C,Transport related expenditure,08/10/2019,1,Director of Children's Services and Education
Transportation,Passenger Railways,New Southern Railw,Transport related expenditure,08/10/2019,6.5,Director of Children's Services and Education
Transportation,Passenger Railways,New Southern Railw,Transport related expenditure,08/10/2019,13,Director of Children's Services and Education
Transportation,Passenger Railways,New Southern Railw,Transport related expenditure,08/10/2019,14.4,Director of Children's Services and Education
Business Expenses/Services,Stationery Stores,Tts Group Ltd,Supplies and Services related expenditure,08/10/2019,11.96,Director of Children's Services and Education
Retail,Grocery Stores/Supermarkets,Tesco Stores 4611,Supplies and Services related expenditure,08/10/2019,0.83,Director of Children's Services and Education
Retail,Grocery Stores/Supermarkets,Tesco Stores 4611,Supplies and Services related expenditure,08/10/2019,0.83,Director of Children's Services and Education
Retail,Grocery Stores/Supermarkets,Tesco Stores 4611,Supplies and Services related expenditure,08/10/2019,7.2,Director of Children's Services and Education
Medical,Hospitals,N W L H-Cashier One,Agency and Third Party Payments related expenditure,08/10/2019,45,Director of Public Health
Medical,Hospitals,N W L H-Cashier One,Agency and Third Party Payments related expenditure,08/10/2019,98,Director of Public Health
Retail,Grocery Stores/Supermarkets,Tesco Store 3055,Supplies and Services related expenditure,08/10/2019,11.8,Director of Children's Services and Education
Entertainment,Bands/Orchestras/Entertain,Bh Live Active - Mount,Supplies and Services related expenditure,08/10/2019,10.42,Director of Children's Services and Education
Retail,Grocery Stores/Supermarkets,Tesco Store 3048,Supplies and Services related expenditure,08/10/2019,7.36,"Director of Housing, Neighbourhood and Building Services"
Equipment And Furniture,Household Appliance Stores,Wilko Retail Limit,Supplies and Services related expenditure,08/10/2019,9.79,"Director of Housing, Neighbourhood and Building Services"
Retail,Grocery Stores/Supermarkets,Asda Stores,Supplies and Services related expenditure,08/10/2019,16.78,"Director of Housing, Neighbourhood and Building Services"
Other Supplies,Department Stores,Southern Co-Op 0247,Supplies and Services related expenditure,08/10/2019,0.85,Director of Adult Services
Facilities/Repair Services,Spec Contractors - Default,Christie Intruder Alar,Supplies and Services related expenditure,08/10/2019,5,"Director of Housing, Neighbourhood and Building Services"
Transportation,"Parking Lots, Meters, Garages",Ringgo Parking,Supplies and Services related expenditure,08/10/2019,5.5,Director of Portsmouth International Port
Transportation,Passenger Railways,Trainline,Supplies and Services related expenditure,08/10/2019,35.6,Director of Portsmouth International Port
Medical,Lab/Med/Hospital Equipment,Wightman & Parrish,Supplies and Services related expenditure,08/10/2019,180.72,"Director of Housing, Neighbourhood and Building Services"
Facilities/Repair Supplies,Home Supply Warehouse Stores,B & Q 1260,Supplies and Services related expenditure,08/10/2019,45.67,Director of Regeneration
Other Supplies,Misc Speciality Retail,Amznmktplace,Supplies and Services related expenditure,08/10/2019,229.97,Director of Adult Services
Other Supplies,Misc Speciality Retail,Amznmktplace,Supplies and Services related expenditure,08/10/2019,266.56,Director of Adult Services
Government,Govt Serv - Default,Havant Borough Council,Supplies and Services related expenditure,08/10/2019,458.33,Capital - Housing RA
Miscellaneous,Charitable/Soc Service Orgs,The Salvation Army,Capital related expenditure,08/10/2019,100,Capital - Housing RA
Other Supplies,Misc Speciality Retail,Amazon.Co.Uk,Supplies and Services related expenditure,08/10/2019,9.96,Director of Children's Services and Education
Other Supplies,Misc Speciality Retail,Amazon.Co.Uk,Supplies and Services related expenditure,08/10/2019,8,Director of Children's Services and Education
Miscellaneous,Elementary/Secondary School,Paypal,Supplies and Services related expenditure,08/10/2019,145,Director of Children's Services and Education
Medical,Lab/Med/Hospital Equipment,Wightman & Parrish,Premises related expenditure,08/10/2019,5.48,"Director of Housing, Neighbourhood and Building Services"
Other Supplies,Misc Speciality Retail,Amznmktplace,Employees related expenditure,08/10/2019,12.99,Director of Children's Services and Education
